Body,Body name,Date,Transaction number,Amount,Non recoverable VAT included in amount,Supplier name,Supplier ID,Expense area,Fund type,Expense type,Category description,
http://thanet.gov.uk/supplierspend,Thanet District Council,04/08/2015,390183,4850.00,,Access Intelligence Media & Comm Ltd,ALL036,Chief Executive,Revenue,Communications & Computing,ICT,
http://thanet.gov.uk/supplierspend,Thanet District Council,04/08/2015,389778,258.50,,Advanced Business Solutions,COA011,Corporate Resources and S151,Revenue,Communications & Computing,ICT,
http://thanet.gov.uk/supplierspend,Thanet District Council,04/08/2015,389779,433.49,,Advanced Business Solutions,COA011,Corporate Resources and S151,Revenue,Communications & Computing,ICT,
http://thanet.gov.uk/supplierspend,Thanet District Council,04/08/2015,389845,250.00,,Albion Fencing&Construction Kent Ltd,ALB005,Operational Services,Revenue,"Repairs,  Alter & Mtce - Build",Building Construction Material,
http://thanet.gov.uk/supplierspend,Thanet District Council,04/08/2015,389846,2414.07,,Albion Fencing&Construction Kent Ltd,ALB005,Operational Services,Revenue,"Repairs,  Alter & Mtce - Build",Building Construction Material,
http://thanet.gov.uk/supplierspend,Thanet District Council,04/08/2015,389847,1490.00,,Albion Fencing&Construction Kent Ltd,ALB005,Operational Services,Revenue,"Repairs,  Alter & Mtce - Build",Building Construction Material,
http://thanet.gov.uk/supplierspend,Thanet District Council,04/08/2015,390084,478.64,,Ap Lifting Gear Company Ltd,APL001,Operational Services,Revenue,"Repairs,  Alter & Mtce - Build",Maritime Services,
http://thanet.gov.uk/supplierspend,Thanet District Council,04/08/2015,389741,418.50,,Beckwith Consulting Limited,BEC001,Corporate Resources and S151,Revenue,Training,Human Resources,
http://thanet.gov.uk/supplierspend,Thanet District Council,04/08/2015,389858,1600.00,,Canterbury Scaffolding,CAN023,Corporate Resources and S151,Balance Sheet,Council Dwellings,Construction-Repair And Maint,
http://thanet.gov.uk/supplierspend,Thanet District Council,04/08/2015,389327,300.00,,Chapel Press,CHA039,Operational Services,Revenue,Miscellaneous Expenses,Facilities And Management Serv,
http://thanet.gov.uk/supplierspend,Thanet District Council,04/08/2015,389961,2937.24,,Civica Uk Ltd,CIV003,East Kent Shared Services,Revenue,Communications & Computing,ICT,
http://thanet.gov.uk/supplierspend,Thanet District Council,04/08/2015,389855,311.63,,Computerland Uk Limited,COM045,Corporate Resources and S151,Revenue,Communications & Computing,ICT,
http://thanet.gov.uk/supplierspend,Thanet District Council,04/08/2015,389856,989.49,,Computerland Uk Limited,COM045,East Kent Shared Services,Revenue,Communications & Computing,ICT,
http://thanet.gov.uk/supplierspend,Thanet District Council,04/08/2015,389857,294.63,,Computerland Uk Limited,COM045,East Kent Shared Services,Revenue,Communications & Computing,ICT,
http://thanet.gov.uk/supplierspend,Thanet District Council,04/08/2015,390090,294.63,,Computerland Uk Limited,COM045,East Kent Shared Services,Revenue,Communications & Computing,ICT,
http://thanet.gov.uk/supplierspend,Thanet District Council,04/08/2015,390194,254.00,,Dawsonrentals Sweepers,DAW003,Operational Services,Revenue,Cont Hire & Operating Lease,Vehicle Management,
http://thanet.gov.uk/supplierspend,Thanet District Council,04/08/2015,390179,348.00,,Dennis Eagle Ltd,DEN005,Operational Services,Revenue,Direct Transport Costs,Vehicle Management,
http://thanet.gov.uk/supplierspend,Thanet District Council,04/08/2015,389805,53963.75,,Dover District Council,DOV001,East Kent Shared Services,Revenue,Grants & Subscriptions,Various Cats-Public Sector,
http://thanet.gov.uk/supplierspend,Thanet District Council,04/08/2015,389199,2845.52,,Downfast Demolition & Salvage Ltd,DOW001,Corporate Resources and S151,Balance Sheet,Other Land And Buildings-Hra,Building Construction Material,
http://thanet.gov.uk/supplierspend,Thanet District Council,04/08/2015,389830,1725.00,,Dr Alexander Marshall,MAR100,Operational Services,Revenue,Services,Cemetery And Crematorium,
http://thanet.gov.uk/supplierspend,Thanet District Council,04/08/2015,389786,397.20,,Eagle Envelopes Ltd,EAG001,East Kent Shared Services,Revenue,"Print, Stat And Gen Off Exps",Stationery,
http://thanet.gov.uk/supplierspend,Thanet District Council,04/08/2015,390169,5987.40,,Egbert H Taylor & Company Ltd,TAY005,Operational Services,Revenue,"Equip, Furniture And Materials",Environmental Services,
http://thanet.gov.uk/supplierspend,Thanet District Council,04/08/2015,390170,7023.60,,Egbert H Taylor & Company Ltd,TAY005,Operational Services,Revenue,"Equip, Furniture And Materials",Environmental Services,
http://thanet.gov.uk/supplierspend,Thanet District Council,04/08/2015,389542,1005.00,,Elliot Kelderis,KEL009,Community Services,Revenue,"Repairs,  Alter & Mtce - Build",Construction-Repair And Maint,
http://thanet.gov.uk/supplierspend,Thanet District Council,04/08/2015,389850,295.00,,Eyeball Signs,EYE002,Operational Services,Revenue,"Repairs,  Alter & Mtce - Build",Facilities And Management Serv,
http://thanet.gov.uk/supplierspend,Thanet District Council,04/08/2015,390000,856.50,,Frontier-Pitts Limited,FRO001,Operational Services,Revenue,"Equip, Furniture And Materials",Building Construction Material,
http://thanet.gov.uk/supplierspend,Thanet District Council,04/08/2015,390186,364.00,,Hands On Suppliers Ltd,HAN007,Operational Services,Revenue,"Equip, Furniture And Materials",Clothing,
http://thanet.gov.uk/supplierspend,Thanet District Council,04/08/2015,390092,288.75,,Holbrook Revell Electrical Ltd,HOL015,Operational Services,Revenue,"Repairs,  Alter & Mtce - Build",Building Construction Material,
http://thanet.gov.uk/supplierspend,Thanet District Council,04/08/2015,390121,269.79,,Hr Go Recruitment Ltd,HRG002,Operational Services,Revenue,Agency Staff,Human Resources,
http://thanet.gov.uk/supplierspend,Thanet District Council,04/08/2015,390122,540.97,,Hr Go Recruitment Ltd,HRG002,Operational Services,Revenue,Agency Staff,Human Resources,
http://thanet.gov.uk/supplierspend,Thanet District Council,04/08/2015,390123,442.52,,Hr Go Recruitment Ltd,HRG002,Community Services,Revenue,Agency Staff,Human Resources,
http://thanet.gov.uk/supplierspend,Thanet District Council,04/08/2015,390124,1455.28,,Hr Go Recruitment Ltd,HRG002,Operational Services,Revenue,Agency Staff,Human Resources,
http://thanet.gov.uk/supplierspend,Thanet District Council,04/08/2015,389726,460.00,,J Rospo Building Contractors,ROS001,Operational Services,Revenue,"Repairs,  Alter & Mtce - Build",Construction-Repair And Maint,
http://thanet.gov.uk/supplierspend,Thanet District Council,04/08/2015,389727,576.00,,J Rospo Building Contractors,ROS001,Operational Services,Revenue,"Repairs,  Alter & Mtce - Build",Construction-Repair And Maint,
http://thanet.gov.uk/supplierspend,Thanet District Council,04/08/2015,389177,325.00,,Jgp Resourcing Ltd,JGP001,Corporate Resources and S151,Revenue,Advertising Expenses,Human Resources,
http://thanet.gov.uk/supplierspend,Thanet District Council,04/08/2015,389177,325.00,,Jgp Resourcing Ltd,JGP001,Community Services,Revenue,Advertising Expenses,Human Resources,
http://thanet.gov.uk/supplierspend,Thanet District Council,04/08/2015,389177,325.00,,Jgp Resourcing Ltd,JGP001,Corporate Resources and S151,Revenue,Advertising Expenses,Human Resources,
http://thanet.gov.uk/supplierspend,Thanet District Council,04/08/2015,389177,325.00,,Jgp Resourcing Ltd,JGP001,Operational Services,Revenue,Advertising Expenses,Human Resources,
http://thanet.gov.uk/supplierspend,Thanet District Council,04/08/2015,389783,545.00,,Jgp Resourcing Ltd,JGP001,Community Services,Revenue,Advertising Expenses,Human Resources,
http://thanet.gov.uk/supplierspend,Thanet District Council,04/08/2015,389784,545.00,,Jgp Resourcing Ltd,JGP001,Corporate Resources and S151,Revenue,Advertising Expenses,Human Resources,
http://thanet.gov.uk/supplierspend,Thanet District Council,04/08/2015,390174,230.00,,John Reeve (Plant Hire) Ltd,REE013,Operational Services,Revenue,Cont Hire & Operating Lease,Vehicle Management,
http://thanet.gov.uk/supplierspend,Thanet District Council,04/08/2015,390167,1048.83,,Kendall Cars Ltd,KEN041,Operational Services,Revenue,Cont Hire & Operating Lease,Vehicle Management,
http://thanet.gov.uk/supplierspend,Thanet District Council,04/08/2015,390168,1048.83,,Kendall Cars Ltd,KEN041,Operational Services,Revenue,Cont Hire & Operating Lease,Vehicle Management,
http://thanet.gov.uk/supplierspend,Thanet District Council,04/08/2015,389841,3500.00,,Lambert Smith Hampton Group Ltd,LAM012,Community Services,Revenue,Services,Construction-Repair And Maint,
http://thanet.gov.uk/supplierspend,Thanet District Council,04/08/2015,390087,300.00,,Local Government Futures Ltd,LOC013,Corporate Resources and S151,Revenue,Expenses,Consultancy,
http://thanet.gov.uk/supplierspend,Thanet District Council,04/08/2015,389698,12.33,,Lyreco Uk Limited,LYR001,Community Services,Revenue,"Print, Stat And Gen Off Exps",Stationery,
http://thanet.gov.uk/supplierspend,Thanet District Council,04/08/2015,389698,546.80,,Lyreco Uk Limited,LYR001,Operational Services,Revenue,"Equip, Furniture And Materials",Stationery,
http://thanet.gov.uk/supplierspend,Thanet District Council,04/08/2015,389698,6.34,,Lyreco Uk Limited,LYR001,Operational Services,Revenue,"Print, Stat And Gen Off Exps",Stationery,
http://thanet.gov.uk/supplierspend,Thanet District Council,04/08/2015,390037,320.00,,M D Electrics,MDE001,Community Services,Revenue,"Repairs,  Alter & Mtce - Build",Building Construction Material,
http://thanet.gov.uk/supplierspend,Thanet District Council,04/08/2015,390038,640.00,,M D Electrics,MDE001,Community Services,Revenue,"Repairs,  Alter & Mtce - Build",Building Construction Material,
http://thanet.gov.uk/supplierspend,Thanet District Council,04/08/2015,389467,315.00,,Magees Guesthouse,MAG009,Community Services,Revenue,Services,Grants,
http://thanet.gov.uk/supplierspend,Thanet District Council,04/08/2015,390094,305.73,,Mears Ltd,MEA003,Community Services,Revenue,"Repairs,  Alter & Mtce - Build",Construction-Repair And Maint,
http://thanet.gov.uk/supplierspend,Thanet District Council,04/08/2015,389079,6835.91,,Midland Software Limited,MID013,Corporate Resources and S151,Balance Sheet,Plant And Equipment,ICT,
http://thanet.gov.uk/supplierspend,Thanet District Council,04/08/2015,389962,9467.54,,Midland Software Limited,MID013,Corporate Resources and S151,Balance Sheet,Plant And Equipment,ICT,
http://thanet.gov.uk/supplierspend,Thanet District Council,04/08/2015,389811,300.00,,Motiv8 Sports & Consulting Ltd,MOT008,Community Services,Revenue,Rents,Arts And Leisure Services,
http://thanet.gov.uk/supplierspend,Thanet District Council,04/08/2015,390102,405.00,,Mrs K Hooper,HOO004,Chief Executive,Revenue,Services,Consultancy,
http://thanet.gov.uk/supplierspend,Thanet District Council,04/08/2015,389776,280.00,,N K F Seymour Electrical Cont,SEY002,Community Services,Revenue,Services,Building Construction Material,
http://thanet.gov.uk/supplierspend,Thanet District Council,04/08/2015,390043,245.97,,Ncc Mechanical Services Limited,NCC006,Community Services,Revenue,"Repairs,  Alter & Mtce - Build",Construction-Repair And Maint,
http://thanet.gov.uk/supplierspend,Thanet District Council,04/08/2015,389812,520.47,,Ocs Group Uk Ltd T/A Fountains,OCS005,Operational Services,Revenue,Fixtures & Fittings,Cleaning And Janitorial,
http://thanet.gov.uk/supplierspend,Thanet District Council,04/08/2015,389823,686.53,,Ocs Group Uk Ltd T/A Fountains,OCS005,Operational Services,Revenue,Fixtures & Fittings,Cleaning And Janitorial,
http://thanet.gov.uk/supplierspend,Thanet District Council,04/08/2015,389824,797.69,,Ocs Group Uk Ltd T/A Fountains,OCS005,Community Services,Revenue,Cleaning & Domestic Supplies,Cleaning And Janitorial,
http://thanet.gov.uk/supplierspend,Thanet District Council,04/08/2015,389777,540.00,,Page Plan Prints,PAG009,Community Services,Revenue,"Print, Stat And Gen Off Exps",Facilities And Management Serv,
http://thanet.gov.uk/supplierspend,Thanet District Council,04/08/2015,386431,3215.00,,Phillips Blinds,PHI002,Corporate Resources and S151,Balance Sheet,Rechargeable Works,Facilities And Management Serv,
http://thanet.gov.uk/supplierspend,Thanet District Council,04/08/2015,389212,1067.50,,R Cannon,CAN007,Operational Services,Revenue,Services,Maritime Services,
http://thanet.gov.uk/supplierspend,Thanet District Council,04/08/2015,389558,595.00,,R Cannon,CAN007,Operational Services,Revenue,Services,Maritime Services,
http://thanet.gov.uk/supplierspend,Thanet District Council,04/08/2015,390222,507.50,,R Cannon,CAN007,Operational Services,Revenue,Services,Maritime Services,
http://thanet.gov.uk/supplierspend,Thanet District Council,04/08/2015,389696,900.00,,Sellick Partnership Ltd,SEL011,Community Services,Revenue,Services,Human Resources,
http://thanet.gov.uk/supplierspend,Thanet District Council,04/08/2015,390205,622.50,,Serco Ltd,SER002,Operational Services,Revenue,"Equip, Furniture And Materials",Building Construction Material,
http://thanet.gov.uk/supplierspend,Thanet District Council,04/08/2015,390105,5000.00,,Sevenoaks District Council,SEV001,Operational Services,Revenue,Grants & Subscriptions,Various Cats-Public Sector,
http://thanet.gov.uk/supplierspend,Thanet District Council,04/08/2015,389835,1120.00,,Sjr Pm Solutions Limited,SJR001,East Kent Shared Services,Revenue,Services,ICT,
http://thanet.gov.uk/supplierspend,Thanet District Council,04/08/2015,390160,510.44,,Sparshatts Of Kent Ltd,SPA008,Operational Services,Revenue,Direct Transport Costs,Vehicle Management,
http://thanet.gov.uk/supplierspend,Thanet District Council,04/08/2015,390161,388.80,,Sparshatts Of Kent Ltd,SPA008,Operational Services,Revenue,Direct Transport Costs,Vehicle Management,
http://thanet.gov.uk/supplierspend,Thanet District Council,04/08/2015,390111,316.08,,Standfast Burglar Alarm Co (Ek) Ltd,STA003,Operational Services,Revenue,"Equip, Furniture And Materials",Facilities And Management Serv,
http://thanet.gov.uk/supplierspend,Thanet District Council,04/08/2015,389064,524.00,,Streetmaster (S.Wales) Limited,STR001,Operational Services,Revenue,"Equip, Furniture And Materials",Highway Equipment And Material,
http://thanet.gov.uk/supplierspend,Thanet District Council,04/08/2015,388650,1360.97,,Swale Heating Ltd,SWA006,Corporate Resources and S151,Balance Sheet,Repairs And Mtce Holding A/C,Building Construction Material,
http://thanet.gov.uk/supplierspend,Thanet District Council,04/08/2015,390120,832.00,,Thanet Safe Limited,TSA004,Operational Services,Revenue,"Equip, Furniture And Materials",Facilities And Management Serv,
http://thanet.gov.uk/supplierspend,Thanet District Council,04/08/2015,389525,2412.48,,The Glenwood Hotel,GLE007,Community Services,Revenue,Services,Housing Management,
http://thanet.gov.uk/supplierspend,Thanet District Council,04/08/2015,389526,2729.14,,The Glenwood Hotel,GLE007,Community Services,Revenue,Services,Housing Management,
http://thanet.gov.uk/supplierspend,Thanet District Council,04/08/2015,389781,2087.49,,The Glenwood Hotel,GLE007,Community Services,Revenue,Services,Housing Management,
http://thanet.gov.uk/supplierspend,Thanet District Council,04/08/2015,389782,2562.47,,The Glenwood Hotel,GLE007,Community Services,Revenue,Services,Housing Management,
http://thanet.gov.uk/supplierspend,Thanet District Council,04/08/2015,390118,3089.00,,Trafalgar Cleaning Equipment Ltd,TRA033,Operational Services,Revenue,"Equip, Furniture And Materials",Cleaning And Janitorial,
http://thanet.gov.uk/supplierspend,Thanet District Council,04/08/2015,390109,1350.00,,Vale Engineering (York) Limited,VAL008,Operational Services,Revenue,"Equip, Furniture And Materials",Horticultural,
http://thanet.gov.uk/supplierspend,Thanet District Council,04/08/2015,390131,660.00,,Vale Engineering (York) Limited,VAL008,Operational Services,Revenue,"Equip, Furniture And Materials",Horticultural,
http://thanet.gov.uk/supplierspend,Thanet District Council,07/08/2015,389072,16782.65,,Bidwells Llp,BID001,Corporate Resources and S151,Balance Sheet,Other Land And Buildings-Hra,Consultancy,
http://thanet.gov.uk/supplierspend,Thanet District Council,07/08/2015,389330,1804.14,,Kent County Council,KCC002,Operational Services,Revenue,"Repairs,  Alter & Mtce - Build",Various Cats-Public Sector,
http://thanet.gov.uk/supplierspend,Thanet District Council,07/08/2015,389755,295.27,,Orange Personal Communications Ltd,ORA002,Corporate Resources and S151,Revenue,Communications & Computing,ICT,
http://thanet.gov.uk/supplierspend,Thanet District Council,07/08/2015,390596,3815.30,,Ostia Consulting Limited,OST001,Community Services,Revenue,Services,Consultancy,
http://thanet.gov.uk/supplierspend,Thanet District Council,07/08/2015,389521,3848.52,,Southern Water,SWA001,Operational Services,Revenue,Water Services,Utilities,
http://thanet.gov.uk/supplierspend,Thanet District Council,07/08/2015,389522,2291.10,,Southern Water,SWA001,Operational Services,Revenue,Water Services,Utilities,
http://thanet.gov.uk/supplierspend,Thanet District Council,07/08/2015,389523,1977.63,,Southern Water,SWA001,Operational Services,Revenue,Water Services,Utilities,
http://thanet.gov.uk/supplierspend,Thanet District Council,07/08/2015,389716,-1996.75,,Southern Water,SWA001,Operational Services,Revenue,Water Services,Utilities,
http://thanet.gov.uk/supplierspend,Thanet District Council,07/08/2015,390409,938.60,,Southern Water,SWA001,Operational Services,Revenue,Water Services,Utilities,
http://thanet.gov.uk/supplierspend,Thanet District Council,07/08/2015,390410,456.41,,Southern Water,SWA001,Operational Services,Revenue,Water Services,Utilities,
http://thanet.gov.uk/supplierspend,Thanet District Council,07/08/2015,390411,543.52,,Southern Water,SWA001,Operational Services,Revenue,Water Services,Utilities,
http://thanet.gov.uk/supplierspend,Thanet District Council,07/08/2015,390414,2409.26,,Southern Water,SWA001,Operational Services,Revenue,Water Services,Utilities,
http://thanet.gov.uk/supplierspend,Thanet District Council,07/08/2015,390465,441.98,,Southern Water,SWA001,Operational Services,Revenue,Water Services,Utilities,
http://thanet.gov.uk/supplierspend,Thanet District Council,07/08/2015,390515,-2008.52,,Southern Water,SWA001,Operational Services,Revenue,Water Services,Utilities,
http://thanet.gov.uk/supplierspend,Thanet District Council,07/08/2015,390516,-2341.36,,Southern Water,SWA001,Operational Services,Revenue,Water Services,Utilities,
http://thanet.gov.uk/supplierspend,Thanet District Council,07/08/2015,389105,13355.00,,Sutcliffe Play Ltd,SUT007,Operational Services,Revenue,"Repairs,  Alter & Mtce - Build",Sports Playground Equipment,
http://thanet.gov.uk/supplierspend,Thanet District Council,07/08/2015,389106,11416.00,,Sutcliffe Play Ltd,SUT007,Operational Services,Revenue,"Repairs,  Alter & Mtce - Build",Sports Playground Equipment,
http://thanet.gov.uk/supplierspend,Thanet District Council,11/08/2015,389729,589.78,,Adecco Uk Ltd,ADE005,Chief Executive,Revenue,Agency Staff,Human Resources,
http://thanet.gov.uk/supplierspend,Thanet District Council,11/08/2015,390193,589.78,,Adecco Uk Ltd,ADE005,Chief Executive,Revenue,Agency Staff,Human Resources,
http://thanet.gov.uk/supplierspend,Thanet District Council,11/08/2015,390375,484.00,,All Access Ltd,ALL031,Community Services,Revenue,Services,Building Construction Material,
http://thanet.gov.uk/supplierspend,Thanet District Council,11/08/2015,390508,256.00,,Andrews & Elliott,AND001,Operational Services,Revenue,"Repairs,  Alter & Mtce - Build",Cemetery And Crematorium,
http://thanet.gov.uk/supplierspend,Thanet District Council,11/08/2015,390200,525.00,,Andy Morris,MOR028,Community Services,Revenue,Services,Arts And Leisure Services,
http://thanet.gov.uk/supplierspend,Thanet District Council,11/08/2015,390201,442.50,,Andy Morris,MOR028,Community Services,Revenue,Services,Arts And Leisure Services,
http://thanet.gov.uk/supplierspend,Thanet District Council,11/08/2015,390221,240.40,,Ate (Uk) Limited,ANG014,Operational Services,Revenue,Direct Transport Costs,Vehicle Management,
http://thanet.gov.uk/supplierspend,Thanet District Council,11/08/2015,390510,888.14,,Ats Euromaster Ltd,ATS002,Operational Services,Revenue,Direct Transport Costs,Vehicle Management,
http://thanet.gov.uk/supplierspend,Thanet District Council,11/08/2015,390486,318.00,,Bridge Security Cctv Ltd,BRI039,Community Services,Revenue,Services,Facilities And Management Serv,
http://thanet.gov.uk/supplierspend,Thanet District Council,11/08/2015,390487,1768.24,,Bridge Security Cctv Ltd,BRI039,Community Services,Revenue,Services,Facilities And Management Serv,
http://thanet.gov.uk/supplierspend,Thanet District Council,11/08/2015,390488,775.00,,Bridge Security Cctv Ltd,BRI039,Operational Services,Revenue,Services,Facilities And Management Serv,
http://thanet.gov.uk/supplierspend,Thanet District Council,11/08/2015,386525,21330.47,,British Gas Business,GAS009,Community Services,Revenue,Energy Costs,Utilities,
http://thanet.gov.uk/supplierspend,Thanet District Council,11/08/2015,390136,297.97,,British Gas Business,GAS009,Community Services,Revenue,Energy Costs,Utilities,
http://thanet.gov.uk/supplierspend,Thanet District Council,11/08/2015,390564,-21330.47,,British Gas Business,GAS009,Community Services,Revenue,Energy Costs,Utilities,
http://thanet.gov.uk/supplierspend,Thanet District Council,11/08/2015,390660,299.63,,British Gas Business,GAS009,Community Services,Revenue,Energy Costs,Utilities,
http://thanet.gov.uk/supplierspend,Thanet District Council,11/08/2015,390399,1827.33,,Bytes Software Services Limited,BYT001,East Kent Shared Services,Revenue,Communications & Computing,ICT,
http://thanet.gov.uk/supplierspend,Thanet District Council,11/08/2015,390513,2913.48,,Canon (Uk) Ltd,CAN021,Community Services,Revenue,"Equip, Furniture And Materials",Facilities And Management Serv,
http://thanet.gov.uk/supplierspend,Thanet District Council,11/08/2015,390466,277.20,,Carol Peters,PET003,Community Services,Revenue,Services,Agency Payments,
http://thanet.gov.uk/supplierspend,Thanet District Council,11/08/2015,390499,645.30,,Carol Peters,PET003,Community Services,Revenue,Services,Agency Payments,
http://thanet.gov.uk/supplierspend,Thanet District Council,11/08/2015,390505,273.98,,Computerland Uk Limited,COM045,East Kent Shared Services,Revenue,Communications & Computing,ICT,
http://thanet.gov.uk/supplierspend,Thanet District Council,11/08/2015,390507,371.31,,Computerland Uk Limited,COM045,East Kent Shared Services,Revenue,Communications & Computing,ICT,
http://thanet.gov.uk/supplierspend,Thanet District Council,11/08/2015,389529,262.50,,E Saunders Margate Ltd,SAU001,Corporate Resources and S151,Balance Sheet,Repairs And Mtce Holding A/C,Construction-Repair And Maint,
http://thanet.gov.uk/supplierspend,Thanet District Council,11/08/2015,390333,232.00,,East Kent Components Ltd,EKC006,Operational Services,Revenue,Direct Transport Costs,Vehicle Management,
http://thanet.gov.uk/supplierspend,Thanet District Council,11/08/2015,390383,21700.00,,East Kent Housing Ltd,EKH002,Community Services,Revenue,Other Agencies,Housing Management,
http://thanet.gov.uk/supplierspend,Thanet District Council,11/08/2015,390559,5280.00,,Evermech Services Ltd,EVE011,Corporate Resources and S151,Balance Sheet,Capital Exp-Non Council Assets,Grants,
http://thanet.gov.uk/supplierspend,Thanet District Council,11/08/2015,390166,13274.84,,Facultatieve Technologies,FAC003,Operational Services,Revenue,"Repairs,  Alter & Mtce - Build",Cemetery And Crematorium,
http://thanet.gov.uk/supplierspend,Thanet District Council,11/08/2015,390558,633.60,,Family Mosaic Housing,FAM001,Corporate Resources and S151,Balance Sheet,Capital Exp-Non Council Assets,Housing Management,
http://thanet.gov.uk/supplierspend,Thanet District Council,11/08/2015,390560,709.24,,Family Mosaic Housing,FAM001,Corporate Resources and S151,Balance Sheet,Capital Exp-Non Council Assets,Housing Management,
http://thanet.gov.uk/supplierspend,Thanet District Council,11/08/2015,390372,1733.69,,Geesink Norba Ltd,GEE006,Operational Services,Revenue,Direct Transport Costs,Vehicle Management,
http://thanet.gov.uk/supplierspend,Thanet District Council,11/08/2015,390384,770.00,,Gulliver'S Truck Hire Limited,GUL001,Operational Services,Revenue,Cont Hire & Operating Lease,Vehicle Management,
http://thanet.gov.uk/supplierspend,Thanet District Council,11/08/2015,390342,7750.00,,Guy Hollaway Hythe Limited,HOL033,Corporate Resources and S151,Balance Sheet,Investment Property For Lease,Construction-Repair And Maint,
http://thanet.gov.uk/supplierspend,Thanet District Council,11/08/2015,390525,400.00,,Hb Editorial Services Limited,HBE002,Corporate Resources and S151,Revenue,Advertising Expenses,Facilities And Management Serv,
http://thanet.gov.uk/supplierspend,Thanet District Council,11/08/2015,390219,139177.50,,Homes & Communities Agency,HOM013,Corporate Resources and S151,Balance Sheet,Hca Grant Funded Projects,Government Agencies,
http://thanet.gov.uk/supplierspend,Thanet District Council,11/08/2015,390587,455.24,,Hr Go Recruitment Ltd,HRG002,Operational Services,Revenue,Agency Staff,Human Resources,
http://thanet.gov.uk/supplierspend,Thanet District Council,11/08/2015,390590,1369.68,,Hr Go Recruitment Ltd,HRG002,Operational Services,Revenue,Agency Staff,Human Resources,
http://thanet.gov.uk/supplierspend,Thanet District Council,11/08/2015,390591,673.34,,Hr Go Recruitment Ltd,HRG002,Operational Services,Revenue,Agency Staff,Human Resources,
http://thanet.gov.uk/supplierspend,Thanet District Council,11/08/2015,389527,450.00,,J Redpath Buchanan & Co Ltd,RED001,Corporate Resources and S151,Balance Sheet,Repairs And Mtce Holding A/C,Building Construction Material,
http://thanet.gov.uk/supplierspend,Thanet District Council,11/08/2015,389528,1216.00,,J Redpath Buchanan & Co Ltd,RED001,Corporate Resources and S151,Balance Sheet,Repairs And Mtce Holding A/C,Building Construction Material,
http://thanet.gov.uk/supplierspend,Thanet District Council,11/08/2015,390364,25.00,,Jacobs,JAC020,East Kent Shared Services,Revenue,Services,Financial Services,
http://thanet.gov.uk/supplierspend,Thanet District Council,11/08/2015,390557,915.20,,John Gale,GAL001,Corporate Resources and S151,Balance Sheet,Capital Exp-Non Council Assets,Grants,
http://thanet.gov.uk/supplierspend,Thanet District Council,11/08/2015,390512,230.00,,John Reeve (Plant Hire) Ltd,REE013,Operational Services,Revenue,Cont Hire & Operating Lease,Vehicle Management,
http://thanet.gov.uk/supplierspend,Thanet District Council,11/08/2015,390368,4410.00,,Kent County Council,KCC002,Community Services,Revenue,Services,Various Cats-Public Sector,
http://thanet.gov.uk/supplierspend,Thanet District Council,11/08/2015,390386,275.00,,Leanne Bain,BAI007,Community Services,Revenue,Services,Arts And Leisure Services,
http://thanet.gov.uk/supplierspend,Thanet District Council,11/08/2015,390172,1000.00,,Lee Evans Partnership Llp,LEE007,Community Services,Revenue,Services,Consultancy,
http://thanet.gov.uk/supplierspend,Thanet District Council,11/08/2015,390468,955.00,,Legacy Telecom Ltd,LEG004,Corporate Resources and S151,Revenue,Communications & Computing,ICT,
http://thanet.gov.uk/supplierspend,Thanet District Council,11/08/2015,390478,399.40,,Lyreco Uk Limited,LYR001,Community Services,Revenue,"Print, Stat And Gen Off Exps",Stationery,
http://thanet.gov.uk/supplierspend,Thanet District Council,11/08/2015,389827,315.00,,Magees Guesthouse,MAG009,Community Services,Revenue,Services,Grants,
http://thanet.gov.uk/supplierspend,Thanet District Council,11/08/2015,389829,405.00,,Magees Guesthouse,MAG009,Community Services,Revenue,Services,Grants,
http://thanet.gov.uk/supplierspend,Thanet District Council,11/08/2015,390398,300.00,,Maxwells Grounds Maintenance Ltd,MAX002,Community Services,Revenue,"Repairs,  Alter & Mtce - Build",Construction-Repair And Maint,
http://thanet.gov.uk/supplierspend,Thanet District Council,11/08/2015,390176,1129.00,,Midland Software Limited,MID013,Corporate Resources and S151,Balance Sheet,Plant And Equipment,ICT,
http://thanet.gov.uk/supplierspend,Thanet District Council,11/08/2015,390177,5949.78,,Midland Software Limited,MID013,Corporate Resources and S151,Balance Sheet,Plant And Equipment,ICT,
http://thanet.gov.uk/supplierspend,Thanet District Council,11/08/2015,390178,464.50,,Midland Software Limited,MID013,Corporate Resources and S151,Balance Sheet,Plant And Equipment,ICT,
http://thanet.gov.uk/supplierspend,Thanet District Council,11/08/2015,390171,563.06,,Morgan Jones Ltd,MOR001,Community Services,Revenue,Agency Staff,Human Resources,
http://thanet.gov.uk/supplierspend,Thanet District Council,11/08/2015,390455,582.75,,Morgan Jones Ltd,MOR001,Community Services,Revenue,Agency Staff,Human Resources,
http://thanet.gov.uk/supplierspend,Thanet District Council,11/08/2015,390352,622.50,,Mr Darren Osborne,OSB008,Community Services,Revenue,Cleaning & Domestic Supplies,Cleaning And Janitorial,
http://thanet.gov.uk/supplierspend,Thanet District Council,11/08/2015,390352,30.00,,Mr Darren Osborne,OSB008,Operational Services,Revenue,Cleaning & Domestic Supplies,Cleaning And Janitorial,
http://thanet.gov.uk/supplierspend,Thanet District Council,11/08/2015,390563,900.00,,Mr Ewan West,WES047,Community Services,Revenue,Services,Legal Services,
http://thanet.gov.uk/supplierspend,Thanet District Council,11/08/2015,390220,7269.38,,National Express Ltd,NAT010,Community Services,Revenue,Services,Agency Payments,
http://thanet.gov.uk/supplierspend,Thanet District Council,11/08/2015,390381,368.00,,Ne Signs Ltd,NES004,Operational Services,Revenue,"Repairs,  Alter & Mtce - Build",Highway Equipment And Material,
http://thanet.gov.uk/supplierspend,Thanet District Council,11/08/2015,390101,213.84,,Ocs Group Uk Ltd T/A Cannon,OCS003,Community Services,Revenue,"Equip, Furniture And Materials",Cleaning And Janitorial,
http://thanet.gov.uk/supplierspend,Thanet District Council,11/08/2015,390597,6888.15,,Ostia Consulting Limited,OST001,Community Services,Revenue,Services,Consultancy,
http://thanet.gov.uk/supplierspend,Thanet District Council,11/08/2015,390356,970.65,,Portakabin Ltd,POR001,Operational Services,Revenue,"Repairs,  Alter & Mtce - Build",Facilities And Management Serv,
http://thanet.gov.uk/supplierspend,Thanet District Council,11/08/2015,390509,1475.00,,Premier Signs,PRE027,Operational Services,Revenue,Direct Transport Costs,Building Construction Material,
http://thanet.gov.uk/supplierspend,Thanet District Council,11/08/2015,390385,358.70,,Probrand Ltd,PRO012,East Kent Shared Services,Revenue,Communications & Computing,ICT,
http://thanet.gov.uk/supplierspend,Thanet District Council,11/08/2015,390088,27.00,,Profile Security Services Limited,PRO018,Corporate Resources and S151,Balance Sheet,Rechargeable Works,Facilities And Management Serv,
http://thanet.gov.uk/supplierspend,Thanet District Council,11/08/2015,390088,769.50,,Profile Security Services Limited,PRO018,Operational Services,Revenue,Services,Facilities And Management Serv,
http://thanet.gov.uk/supplierspend,Thanet District Council,11/08/2015,390424,525.00,,R Cannon,CAN007,Operational Services,Revenue,Services,Maritime Services,
http://thanet.gov.uk/supplierspend,Thanet District Council,11/08/2015,390581,1015.00,,R Cannon,CAN007,Operational Services,Revenue,Services,Maritime Services,
http://thanet.gov.uk/supplierspend,Thanet District Council,11/08/2015,390353,395.84,,Ramsgate Trophies,RTR001,Community Services,Revenue,"Equip, Furniture And Materials",Arts And Leisure Services,
http://thanet.gov.uk/supplierspend,Thanet District Council,11/08/2015,390371,3343.44,,Royal Mail,ROY004,Community Services,Revenue,Communications & Computing,Mail Services,
http://thanet.gov.uk/supplierspend,Thanet District Council,11/08/2015,390218,960.00,,Satisnet Limited,SAT002,East Kent Shared Services,Revenue,Communications & Computing,ICT,
http://thanet.gov.uk/supplierspend,Thanet District Council,11/08/2015,390091,900.00,,Sellick Partnership Ltd,SEL011,Community Services,Revenue,Services,Human Resources,
http://thanet.gov.uk/supplierspend,Thanet District Council,11/08/2015,390188,3054.84,,Sellick Partnership Ltd,SEL011,Corporate Resources and S151,Revenue,Services,Human Resources,
http://thanet.gov.uk/supplierspend,Thanet District Council,11/08/2015,390190,1830.60,,Sellick Partnership Ltd,SEL011,Corporate Resources and S151,Revenue,Agency Staff,Human Resources,
http://thanet.gov.uk/supplierspend,Thanet District Council,11/08/2015,390191,828.10,,Sellick Partnership Ltd,SEL011,Corporate Resources and S151,Revenue,Agency Staff,Human Resources,
http://thanet.gov.uk/supplierspend,Thanet District Council,11/08/2015,390343,1400.00,,Sjr Pm Solutions Limited,SJR001,East Kent Shared Services,Revenue,Services,ICT,
http://thanet.gov.uk/supplierspend,Thanet District Council,11/08/2015,390099,804.00,,Skatepharm Limited,SKA001,Community Services,Revenue,Services,Arts And Leisure Services,
http://thanet.gov.uk/supplierspend,Thanet District Council,11/08/2015,389761,264.16,,Southern Electric,SEL007,Community Services,Revenue,Energy Costs,Utilities,
http://thanet.gov.uk/supplierspend,Thanet District Council,11/08/2015,389762,404.45,,Southern Electric,SEL007,Community Services,Revenue,Energy Costs,Utilities,
http://thanet.gov.uk/supplierspend,Thanet District Council,11/08/2015,390137,641.41,,Southern Electric,SEL007,Community Services,Revenue,Energy Costs,Utilities,
http://thanet.gov.uk/supplierspend,Thanet District Council,11/08/2015,390138,964.97,,Southern Electric,SEL007,Community Services,Revenue,Energy Costs,Utilities,
http://thanet.gov.uk/supplierspend,Thanet District Council,11/08/2015,390154,-404.45,,Southern Electric,SEL007,Community Services,Revenue,Energy Costs,Utilities,
http://thanet.gov.uk/supplierspend,Thanet District Council,11/08/2015,390155,-264.16,,Southern Electric,SEL007,Community Services,Revenue,Energy Costs,Utilities,
http://thanet.gov.uk/supplierspend,Thanet District Council,11/08/2015,390133,80.00,,Spacehouse Limited,SPA012,Corporate Resources and S151,Revenue,Advertising Expenses,Facilities And Management Serv,
http://thanet.gov.uk/supplierspend,Thanet District Council,11/08/2015,390133,80.00,,Spacehouse Limited,SPA012,Community Services,Revenue,Advertising Expenses,Facilities And Management Serv,
http://thanet.gov.uk/supplierspend,Thanet District Council,11/08/2015,390133,160.00,,Spacehouse Limited,SPA012,Corporate Resources and S151,Revenue,Advertising Expenses,Facilities And Management Serv,
http://thanet.gov.uk/supplierspend,Thanet District Council,11/08/2015,390133,80.00,,Spacehouse Limited,SPA012,Operational Services,Revenue,Advertising Expenses,Facilities And Management Serv,
http://thanet.gov.uk/supplierspend,Thanet District Council,11/08/2015,390376,4460.00,,Straight Manufacturing Limited,STR038,Operational Services,Revenue,"Equip, Furniture And Materials",Environmental Services,
http://thanet.gov.uk/supplierspend,Thanet District Council,11/08/2015,390125,281.00,,The Bell Brush Company,BEL018,Operational Services,Revenue,"Equip, Furniture And Materials",Cleaning And Janitorial,
http://thanet.gov.uk/supplierspend,Thanet District Council,11/08/2015,390083,285.53,,The History Press Ltd,HIS002,Community Services,Revenue,"Equip, Furniture And Materials",Arts And Leisure Services,
http://thanet.gov.uk/supplierspend,Thanet District Council,11/08/2015,390561,5877.00,,Trueden Disability Adaptations Ltd,TRU012,Corporate Resources and S151,Balance Sheet,Capital Exp-Non Council Assets,Grants,
http://thanet.gov.uk/supplierspend,Thanet District Council,11/08/2015,390562,10002.00,,Trueden Disability Adaptations Ltd,TRU012,Corporate Resources and S151,Balance Sheet,Capital Exp-Non Council Assets,Grants,
http://thanet.gov.uk/supplierspend,Thanet District Council,11/08/2015,390358,371.92,,Wasteparts Uk Ltd,WAS006,Operational Services,Revenue,Direct Transport Costs,Vehicle Management,
http://thanet.gov.uk/supplierspend,Thanet District Council,11/08/2015,390325,281.00,,Westbury Industrial Supplies Ltd,WES042,Operational Services,Revenue,"Clothes, Uniforms & Laundry",Clothing,
http://thanet.gov.uk/supplierspend,Thanet District Council,11/08/2015,390442,1064.70,,Youngs Nurseries,YOU001,Operational Services,Revenue,"Equip, Furniture And Materials",Horticultural,
http://thanet.gov.uk/supplierspend,Thanet District Council,11/08/2015,390323,115571.00,,Your Leisure Kent Limited,YOU016,Corporate Resources and S151,Balance Sheet,Capital Exp-Non Council Assets,Arts And Leisure Services,
http://thanet.gov.uk/supplierspend,Thanet District Council,13/08/2015,390594,589.78,,Adecco Uk Ltd,ADE005,Chief Executive,Revenue,Agency Staff,Human Resources,
http://thanet.gov.uk/supplierspend,Thanet District Council,13/08/2015,390926,7040.00,,Bramling Construction Ltd,BRA020,Corporate Resources and S151,Balance Sheet,Capital Exp-Non Council Assets,Grants,
http://thanet.gov.uk/supplierspend,Thanet District Council,13/08/2015,390880,231.84,,Canon (Uk) Ltd,CAN021,Community Services,Revenue,"Print, Stat And Gen Off Exps",Facilities And Management Serv,
http://thanet.gov.uk/supplierspend,Thanet District Council,13/08/2015,390335,5540.94,,Canterbury Christ Church University,CAN006,Community Services,Revenue,Energy Costs,Various Categories,
http://thanet.gov.uk/supplierspend,Thanet District Council,13/08/2015,390345,4250.00,,Cilex Law School Ltd,CIL002,Corporate Resources and S151,Revenue,Training,Human Resources,
http://thanet.gov.uk/supplierspend,Thanet District Council,13/08/2015,390086,576.84,,Clear Picture Services Limited,CLE015,Corporate Resources and S151,Balance Sheet,Repairs And Mtce Holding A/C,Facilities And Management Serv,
http://thanet.gov.uk/supplierspend,Thanet District Council,13/08/2015,390635,328.70,,D & S Supplies,DSS002,Operational Services,Revenue,Direct Transport Costs,Vehicle Management,
http://thanet.gov.uk/supplierspend,Thanet District Council,13/08/2015,390661,1940.46,,Dennis Eagle Ltd,DEN005,Operational Services,Revenue,Direct Transport Costs,Vehicle Management,
http://thanet.gov.uk/supplierspend,Thanet District Council,13/08/2015,390907,301.18,,Dennis Eagle Ltd,DEN005,Operational Services,Revenue,Direct Transport Costs,Vehicle Management,
http://thanet.gov.uk/supplierspend,Thanet District Council,13/08/2015,390927,4400.00,,Dolphin Lifts Kent,DOL003,Corporate Resources and S151,Balance Sheet,Capital Exp-Non Council Assets,Grants,
http://thanet.gov.uk/supplierspend,Thanet District Council,13/08/2015,390928,7713.00,,Evermech Services Ltd,EVE011,Corporate Resources and S151,Balance Sheet,Capital Exp-Non Council Assets,Grants,
http://thanet.gov.uk/supplierspend,Thanet District Council,13/08/2015,390923,848.80,,Family Mosaic Housing,FAM001,Corporate Resources and S151,Balance Sheet,Capital Exp-Non Council Assets,Housing Management,
http://thanet.gov.uk/supplierspend,Thanet District Council,13/08/2015,390924,484.00,,Family Mosaic Housing,FAM001,Corporate Resources and S151,Balance Sheet,Capital Exp-Non Council Assets,Housing Management,
http://thanet.gov.uk/supplierspend,Thanet District Council,13/08/2015,390925,929.56,,Family Mosaic Housing,FAM001,Corporate Resources and S151,Balance Sheet,Capital Exp-Non Council Assets,Housing Management,
http://thanet.gov.uk/supplierspend,Thanet District Council,13/08/2015,390947,720.00,,Family Mosaic Housing,FAM001,Corporate Resources and S151,Balance Sheet,Capital Exp-Non Council Assets,Housing Management,
http://thanet.gov.uk/supplierspend,Thanet District Council,13/08/2015,390117,23896.18,,Forecourt Installation Services Ltd,FOR021,Corporate Resources and S151,Balance Sheet,Plant And Equipment,Maritime Services,
http://thanet.gov.uk/supplierspend,Thanet District Council,13/08/2015,390443,3045.00,,Glasdon Uk Ltd,GLA001,Operational Services,Revenue,"Equip, Furniture And Materials",Environmental Services,
http://thanet.gov.uk/supplierspend,Thanet District Council,13/08/2015,390477,318.00,,Grammer & Company Limited,GRA024,Community Services,Revenue,"Print, Stat And Gen Off Exps",Facilities And Management Serv,
http://thanet.gov.uk/supplierspend,Thanet District Council,13/08/2015,390850,770.00,,Gulliver'S Truck Hire Limited,GUL001,Operational Services,Revenue,Cont Hire & Operating Lease,Vehicle Management,
http://thanet.gov.uk/supplierspend,Thanet District Council,13/08/2015,390585,1000.00,,Gva Grimley Limited,GVA001,Community Services,Revenue,Employee Related Schemes,Consultancy,
http://thanet.gov.uk/supplierspend,Thanet District Council,13/08/2015,390128,1050.00,,Hr Go Recruitment Ltd,HRG002,Operational Services,Revenue,Agency Staff,Human Resources,
http://thanet.gov.uk/supplierspend,Thanet District Council,13/08/2015,390518,9593.74,,Hr Go Recruitment Ltd,HRG002,Operational Services,Revenue,Agency Staff,Human Resources,
http://thanet.gov.uk/supplierspend,Thanet District Council,13/08/2015,390519,11906.13,,Hr Go Recruitment Ltd,HRG002,Operational Services,Revenue,Agency Staff,Human Resources,
http://thanet.gov.uk/supplierspend,Thanet District Council,13/08/2015,390520,9603.21,,Hr Go Recruitment Ltd,HRG002,Operational Services,Revenue,Agency Staff,Human Resources,
http://thanet.gov.uk/supplierspend,Thanet District Council,13/08/2015,390524,7465.72,,Hr Go Recruitment Ltd,HRG002,Operational Services,Revenue,Agency Staff,Human Resources,
http://thanet.gov.uk/supplierspend,Thanet District Council,13/08/2015,390526,6347.62,,Hr Go Recruitment Ltd,HRG002,Operational Services,Revenue,Agency Staff,Human Resources,
http://thanet.gov.uk/supplierspend,Thanet District Council,13/08/2015,390588,1060.50,,Hr Go Recruitment Ltd,HRG002,Operational Services,Revenue,Agency Staff,Human Resources,
http://thanet.gov.uk/supplierspend,Thanet District Council,13/08/2015,390589,442.52,,Hr Go Recruitment Ltd,HRG002,Community Services,Revenue,Agency Staff,Human Resources,
http://thanet.gov.uk/supplierspend,Thanet District Council,13/08/2015,390469,1720.00,,Idox Software  Limited,IDO001,Community Services,Revenue,Communications & Computing,ICT,
http://thanet.gov.uk/supplierspend,Thanet District Council,13/08/2015,390918,816.20,,John Gale,GAL001,Corporate Resources and S151,Balance Sheet,Capital Exp-Non Council Assets,Grants,
http://thanet.gov.uk/supplierspend,Thanet District Council,13/08/2015,390921,514.19,,John Gale,GAL001,Corporate Resources and S151,Balance Sheet,Capital Exp-Non Council Assets,Grants,
http://thanet.gov.uk/supplierspend,Thanet District Council,13/08/2015,390636,423.25,,Johnston Sweepers Ltd,JOH008,Operational Services,Revenue,Direct Transport Costs,Vehicle Management,
http://thanet.gov.uk/supplierspend,Thanet District Council,13/08/2015,389108,-2122.13,,Kent County Council (Kcs),KCC003,Operational Services,Revenue,Direct Transport Costs,Facilities And Management Serv,
http://thanet.gov.uk/supplierspend,Thanet District Council,13/08/2015,390834,27767.38,,Kent County Council (Kcs),KCC003,Operational Services,Revenue,Direct Transport Costs,Facilities And Management Serv,
http://thanet.gov.uk/supplierspend,Thanet District Council,13/08/2015,390837,9874.79,,Kent County Council (Kcs),KCC003,Operational Services,Revenue,Direct Transport Costs,Facilities And Management Serv,
http://thanet.gov.uk/supplierspend,Thanet District Council,13/08/2015,390129,4311.57,,National Boat Shows Ltd,NAT001,Operational Services,Revenue,Miscellaneous Expenses,Arts And Leisure Services,
http://thanet.gov.uk/supplierspend,Thanet District Council,13/08/2015,390920,6736.00,,Northwood Builders,NOR002,Corporate Resources and S151,Balance Sheet,Capital Exp-Non Council Assets,Grants,
http://thanet.gov.uk/supplierspend,Thanet District Council,13/08/2015,389819,11520.17,,Ocs Group Uk Ltd T/A Fountains,OCS005,Corporate Resources and S151,Balance Sheet,Repairs And Mtce Holding A/C,Cleaning And Janitorial,
http://thanet.gov.uk/supplierspend,Thanet District Council,13/08/2015,390579,350.00,,R J Broadley Tree Surgery,RJB002,Corporate Resources and S151,Balance Sheet,Repairs And Mtce Holding A/C,Horticultural,
http://thanet.gov.uk/supplierspend,Thanet District Council,13/08/2015,390501,2500.00,,Redactive Media Sales Ltd,RED007,Operational Services,Revenue,Miscellaneous Expenses,Facilities And Management Serv,
http://thanet.gov.uk/supplierspend,Thanet District Council,13/08/2015,390794,3134.07,,Royal Mail,ROY004,Community Services,Revenue,Communications & Computing,Mail Services,
http://thanet.gov.uk/supplierspend,Thanet District Council,13/08/2015,390781,436.25,,Sba Ltd,SBA001,Operational Services,Revenue,"Clothes, Uniforms & Laundry",Clothing,
http://thanet.gov.uk/supplierspend,Thanet District Council,13/08/2015,389200,9313.33,,Sharpe Pritchard Llp,SHA030,Community Services,Revenue,Services,Legal Services,
http://thanet.gov.uk/supplierspend,Thanet District Council,13/08/2015,390919,1626.00,,Titan Lifts Ltd,TIT006,Corporate Resources and S151,Balance Sheet,Capital Exp-Non Council Assets,Facilities And Management Serv,
http://thanet.gov.uk/supplierspend,Thanet District Council,13/08/2015,390377,1679.48,,Tourism Works,TOU007,Community Services,Revenue,Services,Facilities And Management Serv,
http://thanet.gov.uk/supplierspend,Thanet District Council,13/08/2015,390922,4284.95,,Westbrook Construction (Margate) Ltd,WES021,Corporate Resources and S151,Balance Sheet,Capital Exp-Non Council Assets,Various Categories,
http://thanet.gov.uk/supplierspend,Thanet District Council,17/08/2015,390868,589.78,,Adecco Uk Ltd,ADE005,Chief Executive,Revenue,Agency Staff,Human Resources,
http://thanet.gov.uk/supplierspend,Thanet District Council,17/08/2015,391003,2215.00,,Ascendit Lifts Ltd,ASC001,Corporate Resources and S151,Balance Sheet,Capital Exp-Non Council Assets,Grants,
http://thanet.gov.uk/supplierspend,Thanet District Council,17/08/2015,390550,650.00,,Bt Payment Services Ltd,BTE003,Operational Services,Revenue,Communications & Computing,ICT,
http://thanet.gov.uk/supplierspend,Thanet District Council,17/08/2015,390502,1500.00,,Burgess Marine Ltd,BUR017,Operational Services,Revenue,"Repairs,  Alter & Mtce - Build",Maritime Services,
http://thanet.gov.uk/supplierspend,Thanet District Council,17/08/2015,391005,1942.46,,Canon (Uk) Ltd,CAN021,Community Services,Revenue,"Equip, Furniture And Materials",Facilities And Management Serv,
http://thanet.gov.uk/supplierspend,Thanet District Council,17/08/2015,391006,2075.72,,Canon (Uk) Ltd,CAN021,Community Services,Revenue,"Equip, Furniture And Materials",Facilities And Management Serv,
http://thanet.gov.uk/supplierspend,Thanet District Council,17/08/2015,390869,1824.00,,Canterbury City Council,CAN004,Corporate Resources and S151,Revenue,Services,Various Cats-Public Sector,
http://thanet.gov.uk/supplierspend,Thanet District Council,17/08/2015,390949,10363.77,,Crimson Crescent Ltd,CRI005,Corporate Resources and S151,Balance Sheet,Capital Exp-Non Council Assets,Grants,
http://thanet.gov.uk/supplierspend,Thanet District Council,17/08/2015,390633,276.41,,Electraweld Ltd,ELE009,Corporate Resources and S151,Balance Sheet,Plant And Equipment,Building Construction Material,
http://thanet.gov.uk/supplierspend,Thanet District Council,17/08/2015,391004,1022.80,,Family Mosaic Housing,FAM001,Corporate Resources and S151,Balance Sheet,Capital Exp-Non Council Assets,Housing Management,
http://thanet.gov.uk/supplierspend,Thanet District Council,17/08/2015,390182,3025.10,,First Fence Ltd,FIR014,Operational Services,Revenue,"Repairs,  Alter & Mtce - Build",Building Construction Material,
http://thanet.gov.uk/supplierspend,Thanet District Council,17/08/2015,390426,254.52,,Greenham,GRE001,Community Services,Revenue,"Equip, Furniture And Materials",Clothing,
http://thanet.gov.uk/supplierspend,Thanet District Council,17/08/2015,390803,338.10,,H E Municipal Engineering Ltd,HEM003,Operational Services,Revenue,Direct Transport Costs,Vehicle Management,
http://thanet.gov.uk/supplierspend,Thanet District Council,17/08/2015,390467,1325.00,,Haymarket Media Group Ltd,HAY018,Community Services,Revenue,Advertising Expenses,Financial Services,
http://thanet.gov.uk/supplierspend,Thanet District Council,17/08/2015,390425,1090.00,,Holbrook Revell Electrical Ltd,HOL015,Operational Services,Revenue,"Repairs,  Alter & Mtce - Build",Building Construction Material,
http://thanet.gov.uk/supplierspend,Thanet District Council,17/08/2015,390527,7370.27,,Hr Go Recruitment Ltd,HRG002,Operational Services,Revenue,Agency Staff,Human Resources,
http://thanet.gov.uk/supplierspend,Thanet District Council,17/08/2015,390607,2673.00,,Ihs (Global) Ltd,IHS001,Community Services,Revenue,Services,ICT,
http://thanet.gov.uk/supplierspend,Thanet District Council,17/08/2015,390159,440.00,,J Redpath Buchanan & Co Ltd,RED001,Community Services,Revenue,"Repairs,  Alter & Mtce - Build",Building Construction Material,
http://thanet.gov.uk/supplierspend,Thanet District Council,17/08/2015,390159,440.00,,J Redpath Buchanan & Co Ltd,RED001,Operational Services,Revenue,"Repairs,  Alter & Mtce - Build",Building Construction Material,
http://thanet.gov.uk/supplierspend,Thanet District Council,17/08/2015,390653,13237.08,,Kent County Council,KCC002,Community Services,Revenue,Rents,Various Cats-Public Sector,
http://thanet.gov.uk/supplierspend,Thanet District Council,17/08/2015,390899,5351.04,,Kent County Council (Kcs),KCC003,Community Services,Revenue,Energy Costs,Facilities And Management Serv,
http://thanet.gov.uk/supplierspend,Thanet District Council,17/08/2015,390900,5155.45,,Kent County Council (Kcs),KCC003,Operational Services,Revenue,Energy Costs,Facilities And Management Serv,
http://thanet.gov.uk/supplierspend,Thanet District Council,17/08/2015,390901,1876.24,,Kent County Council (Kcs),KCC003,Operational Services,Revenue,Energy Costs,Facilities And Management Serv,
http://thanet.gov.uk/supplierspend,Thanet District Council,17/08/2015,390859,2973.93,,Level 3 Communications (Uk) Ltd,LEV005,Corporate Resources and S151,Balance Sheet,Telephone Holding Account,ICT,
http://thanet.gov.uk/supplierspend,Thanet District Council,17/08/2015,391008,99.00,,Level 3 Communications (Uk) Ltd,LEV005,Operational Services,Revenue,Communications & Computing,ICT,
http://thanet.gov.uk/supplierspend,Thanet District Council,17/08/2015,390659,881.22,,Ling Metals Limited,LIN004,Operational Services,Revenue,Cleaning & Domestic Supplies,Environmental Services,
http://thanet.gov.uk/supplierspend,Thanet District Council,17/08/2015,390529,2105.00,,Meter Macs Ltd,MET014,Operational Services,Revenue,"Repairs,  Alter & Mtce - Build",Street And Traffic Management,
http://thanet.gov.uk/supplierspend,Thanet District Council,17/08/2015,390951,1000.00,,Minster Village Show,MIN021,Community Services,Revenue,Grants & Subscriptions,Grants,
http://thanet.gov.uk/supplierspend,Thanet District Council,17/08/2015,390864,582.75,,Morgan Jones Ltd,MOR001,Community Services,Revenue,Agency Staff,Human Resources,
http://thanet.gov.uk/supplierspend,Thanet District Council,17/08/2015,390801,1850.00,,Mr Philip Woolfe,WOO030,Operational Services,Revenue,Services,Legal Services,
http://thanet.gov.uk/supplierspend,Thanet District Council,17/08/2015,390652,235.50,,Newton Newton Flag&Banner Makers Ltd,NEW021,Community Services,Revenue,Services,Facilities And Management Serv,
http://thanet.gov.uk/supplierspend,Thanet District Council,17/08/2015,390403,365.00,,Profile Security Services Limited,PRO018,Corporate Resources and S151,Balance Sheet,Rechargeable Works,Facilities And Management Serv,
http://thanet.gov.uk/supplierspend,Thanet District Council,17/08/2015,390404,20918.52,,Profile Security Services Limited,PRO018,Operational Services,Revenue,Services,Facilities And Management Serv,
http://thanet.gov.uk/supplierspend,Thanet District Council,17/08/2015,390909,245.00,,R Cannon,CAN007,Operational Services,Revenue,Services,Maritime Services,
http://thanet.gov.uk/supplierspend,Thanet District Council,17/08/2015,390789,243.90,,Rigby Taylor Ltd,RIG002,Operational Services,Revenue,"Equip, Furniture And Materials",Horticultural,
http://thanet.gov.uk/supplierspend,Thanet District Council,17/08/2015,390884,726.00,,Rigby Taylor Ltd,RIG002,Operational Services,Revenue,"Equip, Furniture And Materials",Horticultural,
http://thanet.gov.uk/supplierspend,Thanet District Council,17/08/2015,390606,385.00,,S Pattison,PAT007,Operational Services,Revenue,"Repairs,  Alter & Mtce - Build",Building Construction Material,
http://thanet.gov.uk/supplierspend,Thanet District Council,17/08/2015,390910,215.00,,Seaward Color Copy Ltd,SEA001,Community Services,Revenue,"Print, Stat And Gen Off Exps",Facilities And Management Serv,
http://thanet.gov.uk/supplierspend,Thanet District Council,17/08/2015,390948,6000.00,,South East Building Company Limited,SEB001,Corporate Resources and S151,Balance Sheet,Capital Exp-Non Council Assets,Grants,
http://thanet.gov.uk/supplierspend,Thanet District Council,17/08/2015,390540,224.75,,Southern Electric,SEL007,Operational Services,Revenue,Energy Costs,Utilities,
http://thanet.gov.uk/supplierspend,Thanet District Council,17/08/2015,390545,300.05,,Southern Electric,SEL007,Operational Services,Revenue,Energy Costs,Utilities,
http://thanet.gov.uk/supplierspend,Thanet District Council,17/08/2015,390546,245.04,,Southern Electric,SEL007,Operational Services,Revenue,Energy Costs,Utilities,
http://thanet.gov.uk/supplierspend,Thanet District Council,17/08/2015,390549,5.20,,Southern Electric,SEL007,Community Services,Revenue,Energy Costs,Utilities,
http://thanet.gov.uk/supplierspend,Thanet District Council,17/08/2015,390549,539.84,,Southern Electric,SEL007,Operational Services,Revenue,Energy Costs,Utilities,
http://thanet.gov.uk/supplierspend,Thanet District Council,17/08/2015,390619,251.63,,Southern Water,SWA001,Operational Services,Revenue,Water Services,Utilities,
http://thanet.gov.uk/supplierspend,Thanet District Council,17/08/2015,390827,1714.48,,Southern Water,SWA001,Operational Services,Revenue,Water Services,Utilities,
http://thanet.gov.uk/supplierspend,Thanet District Council,17/08/2015,390828,271.70,,Southern Water,SWA001,Operational Services,Revenue,Water Services,Utilities,
http://thanet.gov.uk/supplierspend,Thanet District Council,17/08/2015,390829,1307.92,,Southern Water,SWA001,Operational Services,Revenue,Water Services,Utilities,
http://thanet.gov.uk/supplierspend,Thanet District Council,17/08/2015,390935,291.07,,Tchibo Coffee International Ltd,TCH007,Corporate Resources and S151,Balance Sheet,Cleaning & Domestic Supplies,Catering,
http://thanet.gov.uk/supplierspend,Thanet District Council,17/08/2015,390935,7.20,,Tchibo Coffee International Ltd,TCH007,Corporate Resources and S151,Balance Sheet,Stationery Stores,Catering,
http://thanet.gov.uk/supplierspend,Thanet District Council,17/08/2015,390192,65.70,,Tfa Fuel Services Ltd,TFA003,Operational Services,Revenue,Direct Transport Costs,Utilities,
http://thanet.gov.uk/supplierspend,Thanet District Council,17/08/2015,390192,2909.69,,Tfa Fuel Services Ltd,TFA003,Operational Services,Revenue,"Equip, Furniture And Materials",Utilities,
http://thanet.gov.uk/supplierspend,Thanet District Council,17/08/2015,390950,1000.00,,Turner Contemporary,TUR016,Community Services,Revenue,Grants & Subscriptions,Grants,
http://thanet.gov.uk/supplierspend,Thanet District Council,17/08/2015,389859,8711.31,,Uplands Engineering Ltd,UPL001,Corporate Resources and S151,Balance Sheet,Plant And Equipment,Maritime Services,
http://thanet.gov.uk/supplierspend,Thanet District Council,17/08/2015,390795,322.68,,Veolia Es (Uk) Ltd,VEO001,Operational Services,Revenue,Cleaning & Domestic Supplies,Environmental Services,
http://thanet.gov.uk/supplierspend,Thanet District Council,17/08/2015,390796,161.34,,Veolia Es (Uk) Ltd,VEO001,Corporate Resources and S151,Balance Sheet,Rechargeable Works,Environmental Services,
http://thanet.gov.uk/supplierspend,Thanet District Council,17/08/2015,390796,2636.33,,Veolia Es (Uk) Ltd,VEO001,Operational Services,Revenue,Cleaning & Domestic Supplies,Environmental Services,
http://thanet.gov.uk/supplierspend,Thanet District Council,17/08/2015,390807,281.52,,Viridor Waste Management Ltd,VIR003,Community Services,Revenue,Private Contractors,Environmental Services,
http://thanet.gov.uk/supplierspend,Thanet District Council,19/08/2015,391083,6.80,,C & S News,CSN001,Chief Executive,Revenue,"Print, Stat And Gen Off Exps",Facilities And Management Serv,
http://thanet.gov.uk/supplierspend,Thanet District Council,19/08/2015,391083,6.80,,C & S News,CSN001,Chief Executive,Revenue,"Print, Stat And Gen Off Exps",Facilities And Management Serv,
http://thanet.gov.uk/supplierspend,Thanet District Council,19/08/2015,391083,6.80,,C & S News,CSN001,Corporate Resources and S151,Revenue,"Print, Stat And Gen Off Exps",Facilities And Management Serv,
http://thanet.gov.uk/supplierspend,Thanet District Council,19/08/2015,391083,6.80,,C & S News,CSN001,Corporate Resources and S151,Revenue,"Print, Stat And Gen Off Exps",Facilities And Management Serv,
http://thanet.gov.uk/supplierspend,Thanet District Council,19/08/2015,391083,6.80,,C & S News,CSN001,Community Services,Revenue,"Print, Stat And Gen Off Exps",Facilities And Management Serv,
http://thanet.gov.uk/supplierspend,Thanet District Council,19/08/2015,391083,6.80,,C & S News,CSN001,Community Services,Revenue,"Print, Stat And Gen Off Exps",Facilities And Management Serv,
http://thanet.gov.uk/supplierspend,Thanet District Council,19/08/2015,391083,6.80,,C & S News,CSN001,Community Services,Revenue,"Print, Stat And Gen Off Exps",Facilities And Management Serv,
http://thanet.gov.uk/supplierspend,Thanet District Council,19/08/2015,391083,6.80,,C & S News,CSN001,Operational Services,Revenue,"Print, Stat And Gen Off Exps",Facilities And Management Serv,
http://thanet.gov.uk/supplierspend,Thanet District Council,19/08/2015,391083,6.80,,C & S News,CSN001,Community Services,Revenue,"Print, Stat And Gen Off Exps",Facilities And Management Serv,
http://thanet.gov.uk/supplierspend,Thanet District Council,19/08/2015,391083,6.80,,C & S News,CSN001,Community Services,Revenue,"Print, Stat And Gen Off Exps",Facilities And Management Serv,
http://thanet.gov.uk/supplierspend,Thanet District Council,19/08/2015,391083,6.80,,C & S News,CSN001,Operational Services,Revenue,"Print, Stat And Gen Off Exps",Facilities And Management Serv,
http://thanet.gov.uk/supplierspend,Thanet District Council,19/08/2015,391083,6.80,,C & S News,CSN001,Community Services,Revenue,"Print, Stat And Gen Off Exps",Facilities And Management Serv,
http://thanet.gov.uk/supplierspend,Thanet District Council,19/08/2015,391083,6.80,,C & S News,CSN001,Community Services,Revenue,"Print, Stat And Gen Off Exps",Facilities And Management Serv,
http://thanet.gov.uk/supplierspend,Thanet District Council,19/08/2015,391083,6.80,,C & S News,CSN001,Operational Services,Revenue,"Print, Stat And Gen Off Exps",Facilities And Management Serv,
http://thanet.gov.uk/supplierspend,Thanet District Council,19/08/2015,391084,15.30,,C & S News,CSN001,Chief Executive,Revenue,"Print, Stat And Gen Off Exps",Facilities And Management Serv,
http://thanet.gov.uk/supplierspend,Thanet District Council,19/08/2015,391084,15.30,,C & S News,CSN001,Chief Executive,Revenue,"Print, Stat And Gen Off Exps",Facilities And Management Serv,
http://thanet.gov.uk/supplierspend,Thanet District Council,19/08/2015,391084,15.30,,C & S News,CSN001,Corporate Resources and S151,Revenue,"Print, Stat And Gen Off Exps",Facilities And Management Serv,
http://thanet.gov.uk/supplierspend,Thanet District Council,19/08/2015,391084,15.30,,C & S News,CSN001,Corporate Resources and S151,Revenue,"Print, Stat And Gen Off Exps",Facilities And Management Serv,
http://thanet.gov.uk/supplierspend,Thanet District Council,19/08/2015,391084,15.30,,C & S News,CSN001,Community Services,Revenue,"Print, Stat And Gen Off Exps",Facilities And Management Serv,
http://thanet.gov.uk/supplierspend,Thanet District Council,19/08/2015,391084,15.30,,C & S News,CSN001,Community Services,Revenue,"Print, Stat And Gen Off Exps",Facilities And Management Serv,
http://thanet.gov.uk/supplierspend,Thanet District Council,19/08/2015,391084,15.30,,C & S News,CSN001,Community Services,Revenue,"Print, Stat And Gen Off Exps",Facilities And Management Serv,
http://thanet.gov.uk/supplierspend,Thanet District Council,19/08/2015,391084,15.30,,C & S News,CSN001,Operational Services,Revenue,"Print, Stat And Gen Off Exps",Facilities And Management Serv,
http://thanet.gov.uk/supplierspend,Thanet District Council,19/08/2015,391084,15.30,,C & S News,CSN001,Community Services,Revenue,"Print, Stat And Gen Off Exps",Facilities And Management Serv,
http://thanet.gov.uk/supplierspend,Thanet District Council,19/08/2015,391084,15.30,,C & S News,CSN001,Community Services,Revenue,"Print, Stat And Gen Off Exps",Facilities And Management Serv,
http://thanet.gov.uk/supplierspend,Thanet District Council,19/08/2015,391084,15.30,,C & S News,CSN001,Operational Services,Revenue,"Print, Stat And Gen Off Exps",Facilities And Management Serv,
http://thanet.gov.uk/supplierspend,Thanet District Council,19/08/2015,391084,15.30,,C & S News,CSN001,Community Services,Revenue,"Print, Stat And Gen Off Exps",Facilities And Management Serv,
http://thanet.gov.uk/supplierspend,Thanet District Council,19/08/2015,391084,15.30,,C & S News,CSN001,Community Services,Revenue,"Print, Stat And Gen Off Exps",Facilities And Management Serv,
http://thanet.gov.uk/supplierspend,Thanet District Council,19/08/2015,391084,15.30,,C & S News,CSN001,Operational Services,Revenue,"Print, Stat And Gen Off Exps",Facilities And Management Serv,
http://thanet.gov.uk/supplierspend,Thanet District Council,19/08/2015,391255,4475.25,,Campbell Reith Hill Llp,CAM013,Corporate Resources and S151,Balance Sheet,Investment Property For Lease,Consultancy,
http://thanet.gov.uk/supplierspend,Thanet District Council,19/08/2015,390814,10000.00,,Civica Uk Ltd,CIV003,East Kent Shared Services,Revenue,Communications & Computing,ICT,
http://thanet.gov.uk/supplierspend,Thanet District Council,19/08/2015,390895,2331.70,,Cobalt Telephone Technologies Ltd,COB002,Operational Services,Revenue,Services,ICT,
http://thanet.gov.uk/supplierspend,Thanet District Council,19/08/2015,390845,461.00,,Computerland Uk Limited,COM045,East Kent Shared Services,Revenue,Communications & Computing,ICT,
http://thanet.gov.uk/supplierspend,Thanet District Council,19/08/2015,390939,1500.00,,David Forsdick Qc,FOR020,Corporate Resources and S151,Revenue,Services,Legal Services,
http://thanet.gov.uk/supplierspend,Thanet District Council,19/08/2015,390429,400.00,,Florence Court Hotel,FLO003,Community Services,Revenue,Services,Housing Management,
http://thanet.gov.uk/supplierspend,Thanet District Council,19/08/2015,390430,360.00,,Florence Court Hotel,FLO003,Community Services,Revenue,Services,Housing Management,
http://thanet.gov.uk/supplierspend,Thanet District Council,19/08/2015,390431,930.00,,Florence Court Hotel,FLO003,Community Services,Revenue,Services,Housing Management,
http://thanet.gov.uk/supplierspend,Thanet District Council,19/08/2015,390432,930.00,,Florence Court Hotel,FLO003,Community Services,Revenue,Services,Housing Management,
http://thanet.gov.uk/supplierspend,Thanet District Council,19/08/2015,390433,520.00,,Florence Court Hotel,FLO003,Community Services,Revenue,Services,Housing Management,
http://thanet.gov.uk/supplierspend,Thanet District Council,19/08/2015,390434,930.00,,Florence Court Hotel,FLO003,Community Services,Revenue,Services,Housing Management,
http://thanet.gov.uk/supplierspend,Thanet District Council,19/08/2015,390435,420.00,,Florence Court Hotel,FLO003,Community Services,Revenue,Services,Housing Management,
http://thanet.gov.uk/supplierspend,Thanet District Council,19/08/2015,390436,930.00,,Florence Court Hotel,FLO003,Community Services,Revenue,Services,Housing Management,
http://thanet.gov.uk/supplierspend,Thanet District Council,19/08/2015,390437,930.00,,Florence Court Hotel,FLO003,Community Services,Revenue,Services,Housing Management,
http://thanet.gov.uk/supplierspend,Thanet District Council,19/08/2015,390438,780.00,,Florence Court Hotel,FLO003,Community Services,Revenue,Services,Housing Management,
http://thanet.gov.uk/supplierspend,Thanet District Council,19/08/2015,390439,480.00,,Florence Court Hotel,FLO003,Community Services,Revenue,Services,Housing Management,
http://thanet.gov.uk/supplierspend,Thanet District Council,19/08/2015,390440,1550.00,,Florence Court Hotel,FLO003,Community Services,Revenue,Services,Housing Management,
http://thanet.gov.uk/supplierspend,Thanet District Council,19/08/2015,390441,930.00,,Florence Court Hotel,FLO003,Community Services,Revenue,Services,Housing Management,
http://thanet.gov.uk/supplierspend,Thanet District Council,19/08/2015,390517,902.00,,Gas Contract Services Ltd,GAS004,Corporate Resources and S151,Balance Sheet,Repairs And Mtce Holding A/C,Construction-Repair And Maint,
http://thanet.gov.uk/supplierspend,Thanet District Council,19/08/2015,391226,770.00,,Gulliver'S Truck Hire Limited,GUL001,Operational Services,Revenue,Cont Hire & Operating Lease,Vehicle Management,
http://thanet.gov.uk/supplierspend,Thanet District Council,19/08/2015,390521,7874.03,,Hr Go Recruitment Ltd,HRG002,Operational Services,Revenue,Agency Staff,Human Resources,
http://thanet.gov.uk/supplierspend,Thanet District Council,19/08/2015,390522,10294.01,,Hr Go Recruitment Ltd,HRG002,Operational Services,Revenue,Agency Staff,Human Resources,
http://thanet.gov.uk/supplierspend,Thanet District Council,19/08/2015,390523,10320.91,,Hr Go Recruitment Ltd,HRG002,Operational Services,Revenue,Agency Staff,Human Resources,
http://thanet.gov.uk/supplierspend,Thanet District Council,19/08/2015,390786,11561.32,,Hr Go Recruitment Ltd,HRG002,Operational Services,Revenue,Agency Staff,Human Resources,
http://thanet.gov.uk/supplierspend,Thanet District Council,19/08/2015,390787,9012.63,,Hr Go Recruitment Ltd,HRG002,Operational Services,Revenue,Agency Staff,Human Resources,
http://thanet.gov.uk/supplierspend,Thanet District Council,19/08/2015,390788,8553.06,,Hr Go Recruitment Ltd,HRG002,Operational Services,Revenue,Agency Staff,Human Resources,
http://thanet.gov.uk/supplierspend,Thanet District Council,19/08/2015,391189,1192.68,,Hr Go Recruitment Ltd,HRG002,Operational Services,Revenue,Agency Staff,Human Resources,
http://thanet.gov.uk/supplierspend,Thanet District Council,19/08/2015,391190,765.42,,Hr Go Recruitment Ltd,HRG002,Operational Services,Revenue,Agency Staff,Human Resources,
http://thanet.gov.uk/supplierspend,Thanet District Council,19/08/2015,391192,1060.50,,Hr Go Recruitment Ltd,HRG002,Operational Services,Revenue,Agency Staff,Human Resources,
http://thanet.gov.uk/supplierspend,Thanet District Council,19/08/2015,390815,633.00,,Hydrosphere Uk Limited,HYD009,Operational Services,Revenue,"Equip, Furniture And Materials",Vehicle Management,
http://thanet.gov.uk/supplierspend,Thanet District Council,19/08/2015,390937,1254.00,,Hydrosphere Uk Limited,HYD009,Operational Services,Revenue,"Equip, Furniture And Materials",Vehicle Management,
http://thanet.gov.uk/supplierspend,Thanet District Council,19/08/2015,389708,3300.00,,Inphase Ltd,INP001,Corporate Resources and S151,Revenue,Services,ICT,
http://thanet.gov.uk/supplierspend,Thanet District Council,19/08/2015,391097,433.04,,Jewson Ltd,JEW001,Operational Services,Revenue,"Equip, Furniture And Materials",Building Construction Material,
http://thanet.gov.uk/supplierspend,Thanet District Council,19/08/2015,390456,1110.00,,John Reeve (Plant Hire) Ltd,REE013,Operational Services,Revenue,Cont Hire & Operating Lease,Vehicle Management,
http://thanet.gov.uk/supplierspend,Thanet District Council,19/08/2015,390865,388.50,,John Reeve (Plant Hire) Ltd,REE013,Operational Services,Revenue,Cont Hire & Operating Lease,Vehicle Management,
http://thanet.gov.uk/supplierspend,Thanet District Council,19/08/2015,390866,230.00,,John Reeve (Plant Hire) Ltd,REE013,Operational Services,Revenue,Cont Hire & Operating Lease,Vehicle Management,
http://thanet.gov.uk/supplierspend,Thanet District Council,19/08/2015,390914,3990.00,,Jump It Recruitment Solutions Ltd,JUM001,East Kent Shared Services,Revenue,Services,Human Resources,
http://thanet.gov.uk/supplierspend,Thanet District Council,19/08/2015,390870,3395.00,,Keith Tait,TAI001,Operational Services,Revenue,Grounds Mtce Costs,Horticultural,
http://thanet.gov.uk/supplierspend,Thanet District Council,19/08/2015,391236,237004.00,,Kent & Medway Towns Fire Authority,KMT001,Corporate Resources and S151,Balance Sheet,Collection Fund - Preceptors,Various Cats-Public Sector,
http://thanet.gov.uk/supplierspend,Thanet District Council,19/08/2015,390838,476.00,,Kent County Council,KCC002,Community Services,Revenue,Expenses,Various Cats-Public Sector,
http://thanet.gov.uk/supplierspend,Thanet District Council,19/08/2015,391085,136.00,,Kent County Council,KCC002,Community Services,Revenue,Expenses,Various Cats-Public Sector,
http://thanet.gov.uk/supplierspend,Thanet District Council,19/08/2015,391237,3663427.00,,Kent County Council,KCC022,Corporate Resources and S151,Balance Sheet,Collection Fund - Preceptors,Various Cats-Public Sector,
http://thanet.gov.uk/supplierspend,Thanet District Council,19/08/2015,391238,495882.00,,Kent Police & Crime Commissioner,KPA003,Corporate Resources and S151,Balance Sheet,Collection Fund - Preceptors,Various Cats-Public Sector,
http://thanet.gov.uk/supplierspend,Thanet District Council,19/08/2015,390360,315.00,,Magees Guesthouse,MAG009,Community Services,Revenue,Services,Grants,
http://thanet.gov.uk/supplierspend,Thanet District Council,19/08/2015,390872,528.24,,Mears Ltd,MEA003,Community Services,Revenue,"Repairs,  Alter & Mtce - Build",Construction-Repair And Maint,
http://thanet.gov.uk/supplierspend,Thanet District Council,19/08/2015,391248,5000.00,,Neopost Ltd Credifon,NEO002,Community Services,Revenue,Communications & Computing,Mail Services,
http://thanet.gov.uk/supplierspend,Thanet District Council,19/08/2015,391251,3000.00,,Neopost Ltd Credifon,NEO002,Community Services,Revenue,Communications & Computing,Mail Services,
http://thanet.gov.uk/supplierspend,Thanet District Council,19/08/2015,388299,5100.00,,New Approach Contractors Ltd,NEW037,Operational Services,Revenue,"Repairs,  Alter & Mtce - Build",Construction-Repair And Maint,
http://thanet.gov.uk/supplierspend,Thanet District Council,19/08/2015,388027,3750.00,,Northgate Public Services (Uk) Ltd,NOR018,Community Services,Revenue,Communications & Computing,ICT,
http://thanet.gov.uk/supplierspend,Thanet District Council,19/08/2015,390902,1000.00,,Northgate Public Services (Uk) Ltd,NOR018,Corporate Resources and S151,Revenue,Communications & Computing,ICT,
http://thanet.gov.uk/supplierspend,Thanet District Council,19/08/2015,390867,250.00,,Phillips Blinds,PHI002,Operational Services,Revenue,"Equip, Furniture And Materials",Facilities And Management Serv,
http://thanet.gov.uk/supplierspend,Thanet District Council,19/08/2015,390812,302.40,,Phoenix Software Ltd,PHO002,East Kent Shared Services,Revenue,Communications & Computing,ICT,
http://thanet.gov.uk/supplierspend,Thanet District Council,19/08/2015,390911,6208.00,,Pioneering Play Limited,PIO002,Operational Services,Revenue,"Equip, Furniture And Materials",Sports Playground Equipment,
http://thanet.gov.uk/supplierspend,Thanet District Council,19/08/2015,390779,1310.00,,Rackspace Limited,RAC006,East Kent Shared Services,Revenue,Communications & Computing,ICT,
http://thanet.gov.uk/supplierspend,Thanet District Council,19/08/2015,N/A,261.64,,REDACTED PERSONAL DATA,N/A,Operational Services,Revenue,Car Allowances,Non Trade Payee,
http://thanet.gov.uk/supplierspend,Thanet District Council,19/08/2015,N/A,591.06,,REDACTED PERSONAL DATA,N/A,East Kent Shared Services,Revenue,Car Allowances,Non Trade Payee,
http://thanet.gov.uk/supplierspend,Thanet District Council,19/08/2015,N/A,274.91,,REDACTED PERSONAL DATA,N/A,Community Services,Revenue,Car Allowances,Non Trade Payee,
http://thanet.gov.uk/supplierspend,Thanet District Council,19/08/2015,N/A,322.55,,REDACTED PERSONAL DATA,N/A,Operational Services,Revenue,Car Allowances,Non Trade Payee,
http://thanet.gov.uk/supplierspend,Thanet District Council,19/08/2015,N/A,409.24,,REDACTED PERSONAL DATA,N/A,Community Services,Revenue,Car Allowances,Non Trade Payee,
http://thanet.gov.uk/supplierspend,Thanet District Council,19/08/2015,N/A,312.40,,REDACTED PERSONAL DATA,N/A,Operational Services,Revenue,Car Allowances,Non Trade Payee,
http://thanet.gov.uk/supplierspend,Thanet District Council,19/08/2015,N/A,267.89,,REDACTED PERSONAL DATA,N/A,Operational Services,Revenue,Car Allowances,Non Trade Payee,
http://thanet.gov.uk/supplierspend,Thanet District Council,19/08/2015,N/A,281.94,,REDACTED PERSONAL DATA,N/A,East Kent Shared Services,Revenue,Car Allowances,Non Trade Payee,
http://thanet.gov.uk/supplierspend,Thanet District Council,19/08/2015,N/A,4380.00,,REDACTED PERSONAL DATA,N/A,Corporate Resources and S151,Revenue,Disturbance Expenses,Non Trade Payee,
http://thanet.gov.uk/supplierspend,Thanet District Council,19/08/2015,N/A,325.68,,REDACTED PERSONAL DATA,N/A,East Kent Shared Services,Revenue,Car Allowances,Non Trade Payee,
http://thanet.gov.uk/supplierspend,Thanet District Council,19/08/2015,390324,253.50,,Rigby Taylor Ltd,RIG002,Operational Services,Revenue,"Equip, Furniture And Materials",Horticultural,
http://thanet.gov.uk/supplierspend,Thanet District Council,19/08/2015,390842,1400.00,,Sjr Pm Solutions Limited,SJR001,East Kent Shared Services,Revenue,Services,ICT,
http://thanet.gov.uk/supplierspend,Thanet District Council,19/08/2015,391140,1455.34,,Southern Electric,SEL007,Operational Services,Revenue,Energy Costs,Utilities,
http://thanet.gov.uk/supplierspend,Thanet District Council,19/08/2015,391146,453.17,,Southern Electric,SEL007,Operational Services,Revenue,Energy Costs,Utilities,
http://thanet.gov.uk/supplierspend,Thanet District Council,19/08/2015,391149,-362.89,,Southern Electric,SEL007,Community Services,Revenue,Energy Costs,Utilities,
http://thanet.gov.uk/supplierspend,Thanet District Council,19/08/2015,391150,-363.39,,Southern Electric,SEL007,Community Services,Revenue,Energy Costs,Utilities,
http://thanet.gov.uk/supplierspend,Thanet District Council,19/08/2015,391151,-366.73,,Southern Electric,SEL007,Community Services,Revenue,Energy Costs,Utilities,
http://thanet.gov.uk/supplierspend,Thanet District Council,19/08/2015,391152,-351.83,,Southern Electric,SEL007,Community Services,Revenue,Energy Costs,Utilities,
http://thanet.gov.uk/supplierspend,Thanet District Council,19/08/2015,391167,1642.46,,Southern Electric,SEL007,Operational Services,Revenue,Energy Costs,Utilities,
http://thanet.gov.uk/supplierspend,Thanet District Council,19/08/2015,391168,-1455.34,,Southern Electric,SEL007,Operational Services,Revenue,Energy Costs,Utilities,
http://thanet.gov.uk/supplierspend,Thanet District Council,19/08/2015,391133,2492.19,,Southern Water,SWA001,Operational Services,Revenue,Water Services,Utilities,
http://thanet.gov.uk/supplierspend,Thanet District Council,19/08/2015,391172,1173.30,,Southern Water,SWA001,Operational Services,Revenue,Water Services,Utilities,
http://thanet.gov.uk/supplierspend,Thanet District Council,19/08/2015,391209,2975.00,,Surface 2 Air Media Limited,SUR016,Operational Services,Revenue,Services,Facilities And Management Serv,
http://thanet.gov.uk/supplierspend,Thanet District Council,19/08/2015,390898,370.00,,Survey And Test,SUR015,Community Services,Revenue,"Repairs,  Alter & Mtce - Build",Utilities,
http://thanet.gov.uk/supplierspend,Thanet District Council,19/08/2015,390463,1360.88,,Swale Heating Ltd,SWA006,Corporate Resources and S151,Balance Sheet,Repairs And Mtce Holding A/C,Building Construction Material,
http://thanet.gov.uk/supplierspend,Thanet District Council,19/08/2015,390464,25133.94,,Swale Heating Ltd,SWA006,Corporate Resources and S151,Balance Sheet,Repairs And Mtce Holding A/C,Building Construction Material,
http://thanet.gov.uk/supplierspend,Thanet District Council,19/08/2015,390511,684.90,,Thanet Waste Services Ltd,TWA001,Operational Services,Revenue,Private Contractors,Environmental Services,
http://thanet.gov.uk/supplierspend,Thanet District Council,19/08/2015,390489,791.65,,The Glenwood Hotel,GLE007,Community Services,Revenue,Services,Housing Management,
http://thanet.gov.uk/supplierspend,Thanet District Council,19/08/2015,390490,3124.99,,The Glenwood Hotel,GLE007,Community Services,Revenue,Services,Housing Management,
http://thanet.gov.uk/supplierspend,Thanet District Council,19/08/2015,391103,1987.50,,The Natural Solution Cleaning Co Ltd,NAT030,Operational Services,Revenue,"Repairs,  Alter & Mtce - Build",Cleaning And Janitorial,
http://thanet.gov.uk/supplierspend,Thanet District Council,19/08/2015,389480,400.00,,Think Publishing Limited,THI011,Operational Services,Revenue,Miscellaneous Expenses,Facilities And Management Serv,
http://thanet.gov.uk/supplierspend,Thanet District Council,19/08/2015,391102,250.00,,W Brazil & Bros,BRA001,Operational Services,Revenue,Services,Environmental Services,
http://thanet.gov.uk/supplierspend,Thanet District Council,19/08/2015,391107,3535.00,,W Brazil & Bros,BRA001,Operational Services,Revenue,Grounds Mtce Costs,Environmental Services,
http://thanet.gov.uk/supplierspend,Thanet District Council,19/08/2015,390793,277.93,,W G Burbridge,BUR016,Operational Services,Revenue,"Equip, Furniture And Materials",Building Construction Material,
http://thanet.gov.uk/supplierspend,Thanet District Council,19/08/2015,390379,228.00,,Wyzrds Co Ltd,WYZ001,Operational Services,Revenue,"Equip, Furniture And Materials",Stationery,
http://thanet.gov.uk/supplierspend,Thanet District Council,25/08/2015,390582,7837.50,,Ass For Public Service Excellence,ASS013,Operational Services,Revenue,Services,Human Resources,
http://thanet.gov.uk/supplierspend,Thanet District Council,25/08/2015,390813,518.70,,Automail Envelopes Ltd,AUT005,East Kent Shared Services,Revenue,"Print, Stat And Gen Off Exps",Stationery,
http://thanet.gov.uk/supplierspend,Thanet District Council,25/08/2015,391270,480.00,,Bowman Maintenance Contracting,BMC001,Operational Services,Revenue,"Repairs,  Alter & Mtce - Build",Building Construction Material,
http://thanet.gov.uk/supplierspend,Thanet District Council,25/08/2015,391440,6910.00,,Bramling Construction Ltd,BRA020,Corporate Resources and S151,Balance Sheet,Capital Exp-Non Council Assets,Grants,
http://thanet.gov.uk/supplierspend,Thanet District Council,25/08/2015,391446,11396.00,,Bramling Construction Ltd,BRA020,Corporate Resources and S151,Balance Sheet,Capital Exp-Non Council Assets,Grants,
http://thanet.gov.uk/supplierspend,Thanet District Council,25/08/2015,390905,1032.30,,Buzzlines Travel Ltd,BUZ001,Community Services,Revenue,Services,Agency Payments,
http://thanet.gov.uk/supplierspend,Thanet District Council,25/08/2015,390853,1750.00,,Call Flow Solutions Limited,CAL006,Community Services,Revenue,Communications & Computing,ICT,
http://thanet.gov.uk/supplierspend,Thanet District Council,25/08/2015,390854,2261.81,,Call Flow Solutions Limited,CAL006,Community Services,Revenue,Communications & Computing,ICT,
http://thanet.gov.uk/supplierspend,Thanet District Council,25/08/2015,390857,310.00,,Call Flow Solutions Limited,CAL006,Community Services,Revenue,Communications & Computing,ICT,
http://thanet.gov.uk/supplierspend,Thanet District Council,25/08/2015,391377,965.00,,Casement Signs And Traffic,CAS001,Operational Services,Revenue,"Repairs,  Alter & Mtce - Build",Street And Traffic Management,
http://thanet.gov.uk/supplierspend,Thanet District Council,25/08/2015,391110,353.64,,Channel Commercials Plc,CCO001,Operational Services,Revenue,Direct Transport Costs,Vehicle Management,
http://thanet.gov.uk/supplierspend,Thanet District Council,25/08/2015,391216,1003.16,,Channel Commercials Plc,CCO001,Operational Services,Revenue,Direct Transport Costs,Vehicle Management,
http://thanet.gov.uk/supplierspend,Thanet District Council,25/08/2015,390876,263.87,,City Electrical Factors Ltd,CIT001,Operational Services,Revenue,"Repairs,  Alter & Mtce - Build",Building Construction Material,
http://thanet.gov.uk/supplierspend,Thanet District Council,25/08/2015,391590,1787.78,,Cliffsend Parish Council,CLI015,Community Services,Revenue,Grants & Subscriptions,Various Cats-Public Sector,
http://thanet.gov.uk/supplierspend,Thanet District Council,25/08/2015,391468,2724.00,,Commercial Services Trading Ltd,COM048,Operational Services,Revenue,Cont Hire & Operating Lease,Various Cats-Public Sector,
http://thanet.gov.uk/supplierspend,Thanet District Council,25/08/2015,391469,2674.00,,Commercial Services Trading Ltd,COM048,Operational Services,Revenue,Cont Hire & Operating Lease,Various Cats-Public Sector,
http://thanet.gov.uk/supplierspend,Thanet District Council,25/08/2015,391470,2634.00,,Commercial Services Trading Ltd,COM048,Operational Services,Revenue,Cont Hire & Operating Lease,Various Cats-Public Sector,
http://thanet.gov.uk/supplierspend,Thanet District Council,25/08/2015,391594,-467.10,,Commercial Services Trading Ltd,COM048,Community Services,Revenue,Cont Hire & Operating Lease,Various Cats-Public Sector,
http://thanet.gov.uk/supplierspend,Thanet District Council,25/08/2015,391212,777.00,,Computerland Uk Limited,COM045,East Kent Shared Services,Revenue,Communications & Computing,ICT,
http://thanet.gov.uk/supplierspend,Thanet District Council,25/08/2015,390816,39167.00,,Crown Estate,CRO022,Operational Services,Revenue,Rents,Maritime Services,
http://thanet.gov.uk/supplierspend,Thanet District Council,25/08/2015,390817,32265.25,,Crown Estate,CRO022,Operational Services,Revenue,Rents,Maritime Services,
http://thanet.gov.uk/supplierspend,Thanet District Council,25/08/2015,390818,4435.75,,Crown Estate,CRO022,Operational Services,Revenue,Rents,Maritime Services,
http://thanet.gov.uk/supplierspend,Thanet District Council,25/08/2015,391242,355.17,,Dennis Eagle Ltd,DEN005,Operational Services,Revenue,Direct Transport Costs,Vehicle Management,
http://thanet.gov.uk/supplierspend,Thanet District Council,25/08/2015,391243,257.04,,Dennis Eagle Ltd,DEN005,Operational Services,Revenue,Direct Transport Costs,Vehicle Management,
http://thanet.gov.uk/supplierspend,Thanet District Council,25/08/2015,391280,317.81,,Dennis Eagle Ltd,DEN005,Operational Services,Revenue,Direct Transport Costs,Vehicle Management,
http://thanet.gov.uk/supplierspend,Thanet District Council,25/08/2015,391365,248.71,,Dennis Eagle Ltd,DEN005,Operational Services,Revenue,Direct Transport Costs,Vehicle Management,
http://thanet.gov.uk/supplierspend,Thanet District Council,25/08/2015,390896,1012.00,,Disclosure And Barring Service,DIS017,Community Services,Revenue,"Equip, Furniture And Materials",Human Resources,
http://thanet.gov.uk/supplierspend,Thanet District Council,25/08/2015,391259,1525.00,,Dr Alexander Marshall,MAR100,Operational Services,Revenue,Services,Cemetery And Crematorium,
http://thanet.gov.uk/supplierspend,Thanet District Council,25/08/2015,391260,1950.00,,Dr R K Chhabra,CHH001,Operational Services,Revenue,Services,Cemetery And Crematorium,
http://thanet.gov.uk/supplierspend,Thanet District Council,25/08/2015,391289,330.00,,Dribbly Drops Plumbing Services,DRI003,Corporate Resources and S151,Balance Sheet,Repairs And Mtce Holding A/C,Building Construction Material,
http://thanet.gov.uk/supplierspend,Thanet District Council,25/08/2015,391290,1351.70,,Dribbly Drops Plumbing Services,DRI003,Corporate Resources and S151,Balance Sheet,Repairs And Mtce Holding A/C,Building Construction Material,
http://thanet.gov.uk/supplierspend,Thanet District Council,25/08/2015,391247,4312.00,,Experian Ltd,EXP004,East Kent Shared Services,Revenue,Services,Financial Services,
http://thanet.gov.uk/supplierspend,Thanet District Council,25/08/2015,391444,833.20,,Family Mosaic Housing,FAM001,Corporate Resources and S151,Balance Sheet,Capital Exp-Non Council Assets,Housing Management,
http://thanet.gov.uk/supplierspend,Thanet District Council,25/08/2015,391390,2946.30,,Glasdon Uk Ltd,GLA001,Operational Services,Revenue,"Equip, Furniture And Materials",Environmental Services,
http://thanet.gov.uk/supplierspend,Thanet District Council,25/08/2015,390531,227.25,,Greenham,GRE001,Community Services,Revenue,"Equip, Furniture And Materials",Clothing,
http://thanet.gov.uk/supplierspend,Thanet District Council,25/08/2015,390531,109.08,,Greenham,GRE001,Operational Services,Revenue,"Equip, Furniture And Materials",Clothing,
http://thanet.gov.uk/supplierspend,Thanet District Council,25/08/2015,391439,340.36,,Haynes Of Maidstone Ltd,HAY008,Operational Services,Revenue,Direct Transport Costs,Vehicle Management,
http://thanet.gov.uk/supplierspend,Thanet District Council,25/08/2015,391273,650.00,,Hi Way Services Ltd,HIW002,Operational Services,Revenue,"Repairs,  Alter & Mtce - Build",Highway Equipment And Material,
http://thanet.gov.uk/supplierspend,Thanet District Council,25/08/2015,391129,11635.69,,Hr Go Recruitment Ltd,HRG002,Operational Services,Revenue,Agency Staff,Human Resources,
http://thanet.gov.uk/supplierspend,Thanet District Council,25/08/2015,391130,9196.64,,Hr Go Recruitment Ltd,HRG002,Operational Services,Revenue,Agency Staff,Human Resources,
http://thanet.gov.uk/supplierspend,Thanet District Council,25/08/2015,391131,8786.07,,Hr Go Recruitment Ltd,HRG002,Operational Services,Revenue,Agency Staff,Human Resources,
http://thanet.gov.uk/supplierspend,Thanet District Council,25/08/2015,391191,442.52,,Hr Go Recruitment Ltd,HRG002,Community Services,Revenue,Agency Staff,Human Resources,
http://thanet.gov.uk/supplierspend,Thanet District Council,25/08/2015,391474,1361.12,,Hr Go Recruitment Ltd,HRG002,Operational Services,Revenue,Agency Staff,Human Resources,
http://thanet.gov.uk/supplierspend,Thanet District Council,25/08/2015,391478,944.75,,Hr Go Recruitment Ltd,HRG002,Operational Services,Revenue,Agency Staff,Human Resources,
http://thanet.gov.uk/supplierspend,Thanet District Council,25/08/2015,391441,553.70,,John Gale,GAL001,Corporate Resources and S151,Balance Sheet,Capital Exp-Non Council Assets,Grants,
http://thanet.gov.uk/supplierspend,Thanet District Council,25/08/2015,391447,548.20,,John Gale,GAL001,Corporate Resources and S151,Balance Sheet,Capital Exp-Non Council Assets,Grants,
http://thanet.gov.uk/supplierspend,Thanet District Council,25/08/2015,391393,248.20,,John Parker & Son Ltd,PAR001,Corporate Resources and S151,Balance Sheet,Plant And Equipment,Building Construction Material,
http://thanet.gov.uk/supplierspend,Thanet District Council,25/08/2015,391370,3500.00,,Jump It Recruitment Solutions Ltd,JUM001,East Kent Shared Services,Revenue,Services,Human Resources,
http://thanet.gov.uk/supplierspend,Thanet District Council,25/08/2015,391178,490.31,,Kent County Council (Kcs),KCC003,Community Services,Revenue,Energy Costs,Facilities And Management Serv,
http://thanet.gov.uk/supplierspend,Thanet District Council,25/08/2015,391179,239.75,,Kent County Council (Kcs),KCC003,Operational Services,Revenue,Energy Costs,Facilities And Management Serv,
http://thanet.gov.uk/supplierspend,Thanet District Council,25/08/2015,391180,529.05,,Kent County Council (Kcs),KCC003,Community Services,Revenue,Energy Costs,Facilities And Management Serv,
http://thanet.gov.uk/supplierspend,Thanet District Council,25/08/2015,391181,272.71,,Kent County Council (Kcs),KCC003,Community Services,Revenue,Energy Costs,Facilities And Management Serv,
http://thanet.gov.uk/supplierspend,Thanet District Council,25/08/2015,391198,1198.80,,Kent County Council (Kcs),KCC003,Operational Services,Revenue,Energy Costs,Facilities And Management Serv,
http://thanet.gov.uk/supplierspend,Thanet District Council,25/08/2015,391199,1451.13,,Kent County Council (Kcs),KCC003,Operational Services,Revenue,Energy Costs,Facilities And Management Serv,
http://thanet.gov.uk/supplierspend,Thanet District Council,25/08/2015,391200,977.45,,Kent County Council (Kcs),KCC003,Operational Services,Revenue,Energy Costs,Facilities And Management Serv,
http://thanet.gov.uk/supplierspend,Thanet District Council,25/08/2015,391201,1526.12,,Kent County Council (Kcs),KCC003,Operational Services,Revenue,Energy Costs,Facilities And Management Serv,
http://thanet.gov.uk/supplierspend,Thanet District Council,25/08/2015,391234,-229.51,,Kent County Council (Kcs),KCC003,Operational Services,Revenue,Energy Costs,Facilities And Management Serv,
http://thanet.gov.uk/supplierspend,Thanet District Council,25/08/2015,391386,10374.90,,Kingdom Security Limited,KIN039,Operational Services,Revenue,Services,Street And Traffic Management,
http://thanet.gov.uk/supplierspend,Thanet District Council,25/08/2015,390625,580.00,,Km Media Group Limited,KMM001,Community Services,Revenue,Miscellaneous Expenses,Facilities And Management Serv,
http://thanet.gov.uk/supplierspend,Thanet District Council,25/08/2015,391244,450.00,,Lighthouse Safety Training Limited,LIG002,Operational Services,Revenue,Training,Human Resources,
http://thanet.gov.uk/supplierspend,Thanet District Council,25/08/2015,391367,2158.33,,Lobster Van Hire Ltd,LOB001,Operational Services,Revenue,Cont Hire & Operating Lease,Vehicle Management,
http://thanet.gov.uk/supplierspend,Thanet District Council,25/08/2015,391195,443.95,,Mears Ltd,MEA003,Community Services,Revenue,"Repairs,  Alter & Mtce - Build",Construction-Repair And Maint,
http://thanet.gov.uk/supplierspend,Thanet District Council,25/08/2015,391204,3776.14,,Mears Ltd,MEA003,Community Services,Revenue,"Repairs,  Alter & Mtce - Build",Construction-Repair And Maint,
http://thanet.gov.uk/supplierspend,Thanet District Council,25/08/2015,391219,227.12,,Mears Ltd,MEA003,Community Services,Revenue,"Repairs,  Alter & Mtce - Build",Construction-Repair And Maint,
http://thanet.gov.uk/supplierspend,Thanet District Council,25/08/2015,391460,859.51,,Mears Ltd,MEA003,Corporate Resources and S151,Balance Sheet,Repairs And Mtce Holding A/C,Construction-Repair And Maint,
http://thanet.gov.uk/supplierspend,Thanet District Council,25/08/2015,391461,15445.61,,Mears Ltd,MEA003,Corporate Resources and S151,Balance Sheet,Repairs And Mtce Holding A/C,Construction-Repair And Maint,
http://thanet.gov.uk/supplierspend,Thanet District Council,25/08/2015,391462,12802.81,,Mears Ltd,MEA003,Corporate Resources and S151,Balance Sheet,Repairs And Mtce Holding A/C,Construction-Repair And Maint,
http://thanet.gov.uk/supplierspend,Thanet District Council,25/08/2015,391463,15149.79,,Mears Ltd,MEA003,Corporate Resources and S151,Balance Sheet,Repairs And Mtce Holding A/C,Construction-Repair And Maint,
http://thanet.gov.uk/supplierspend,Thanet District Council,25/08/2015,391464,21743.97,,Mears Ltd,MEA003,Corporate Resources and S151,Balance Sheet,Repairs And Mtce Holding A/C,Construction-Repair And Maint,
http://thanet.gov.uk/supplierspend,Thanet District Council,25/08/2015,382764,800.00,,Meridian Membranes,MER018,Community Services,Revenue,"Repairs,  Alter & Mtce - Build",Building Construction Material,
http://thanet.gov.uk/supplierspend,Thanet District Council,25/08/2015,391229,6120.00,,Milmer Consulting Limited,MIL046,Operational Services,Revenue,Services,Environmental Services,
http://thanet.gov.uk/supplierspend,Thanet District Council,25/08/2015,391283,553.52,,Morgan Jones Ltd,MOR001,Corporate Resources and S151,Revenue,Agency Staff,Human Resources,
http://thanet.gov.uk/supplierspend,Thanet District Council,25/08/2015,391284,311.74,,Morgan Jones Ltd,MOR001,Corporate Resources and S151,Revenue,Agency Staff,Human Resources,
http://thanet.gov.uk/supplierspend,Thanet District Council,25/08/2015,391285,563.06,,Morgan Jones Ltd,MOR001,Community Services,Revenue,Agency Staff,Human Resources,
http://thanet.gov.uk/supplierspend,Thanet District Council,25/08/2015,391363,1484.90,,Neopost Ltd,NEO003,Community Services,Revenue,"Equip, Furniture And Materials",Mail Services,
http://thanet.gov.uk/supplierspend,Thanet District Council,25/08/2015,391442,5537.00,,Northwood Builders,NOR002,Corporate Resources and S151,Balance Sheet,Capital Exp-Non Council Assets,Grants,
http://thanet.gov.uk/supplierspend,Thanet District Council,25/08/2015,391445,5482.00,,Northwood Builders,NOR002,Corporate Resources and S151,Balance Sheet,Capital Exp-Non Council Assets,Grants,
http://thanet.gov.uk/supplierspend,Thanet District Council,25/08/2015,391517,352.44,,O2 (Uk) Ltd,O2U001,Operational Services,Revenue,Communications & Computing,ICT,
http://thanet.gov.uk/supplierspend,Thanet District Council,25/08/2015,388813,280.00,,Phillips Blinds,PHI002,Community Services,Revenue,"Repairs,  Alter & Mtce - Build",Facilities And Management Serv,
http://thanet.gov.uk/supplierspend,Thanet District Council,25/08/2015,390199,583.60,,Posturite Ltd,POS010,Operational Services,Revenue,"Equip, Furniture And Materials",Health And Safety,
http://thanet.gov.uk/supplierspend,Thanet District Council,25/08/2015,391277,238.18,,Premier Paper Group Limited,PRE035,Community Services,Revenue,"Print, Stat And Gen Off Exps",Stationery,
http://thanet.gov.uk/supplierspend,Thanet District Council,25/08/2015,391381,212.80,,Presco Uk Limited,PRE003,Community Services,Revenue,"Print, Stat And Gen Off Exps",Facilities And Management Serv,
http://thanet.gov.uk/supplierspend,Thanet District Council,25/08/2015,391548,630.00,,R Cannon,CAN007,Operational Services,Revenue,Services,Maritime Services,
http://thanet.gov.uk/supplierspend,Thanet District Council,25/08/2015,390938,220.00,,Red Snapper Media Limited,RED021,Community Services,Revenue,Miscellaneous Expenses,Human Resources,
http://thanet.gov.uk/supplierspend,Thanet District Council,25/08/2015,388659,793.00,,Royal Mail,ROY004,Corporate Resources and S151,Revenue,Communications & Computing,Mail Services,
http://thanet.gov.uk/supplierspend,Thanet District Council,25/08/2015,391128,2271.03,,Royal Mail,ROY004,Community Services,Revenue,Communications & Computing,Mail Services,
http://thanet.gov.uk/supplierspend,Thanet District Council,25/08/2015,391595,840.00,,Royal Mail,ROY004,Corporate Resources and S151,Revenue,Communications & Computing,Mail Services,
http://thanet.gov.uk/supplierspend,Thanet District Council,25/08/2015,391596,-840.00,,Royal Mail,ROY004,Corporate Resources and S151,Revenue,Communications & Computing,Mail Services,
http://thanet.gov.uk/supplierspend,Thanet District Council,25/08/2015,391504,692.24,,Sba Ltd,SBA001,Operational Services,Revenue,"Clothes, Uniforms & Laundry",Clothing,
http://thanet.gov.uk/supplierspend,Thanet District Council,25/08/2015,391525,347.99,,Sba Ltd,SBA001,Operational Services,Revenue,"Clothes, Uniforms & Laundry",Clothing,
http://thanet.gov.uk/supplierspend,Thanet District Council,25/08/2015,389738,787.50,,Sellick Partnership Ltd,SEL011,Corporate Resources and S151,Revenue,Agency Staff,Human Resources,
http://thanet.gov.uk/supplierspend,Thanet District Council,25/08/2015,390839,2715.42,,Sellick Partnership Ltd,SEL011,Corporate Resources and S151,Revenue,Services,Human Resources,
http://thanet.gov.uk/supplierspend,Thanet District Council,25/08/2015,390840,2171.70,,Sellick Partnership Ltd,SEL011,Corporate Resources and S151,Revenue,Agency Staff,Human Resources,
http://thanet.gov.uk/supplierspend,Thanet District Council,25/08/2015,390841,927.15,,Sellick Partnership Ltd,SEL011,Corporate Resources and S151,Revenue,Agency Staff,Human Resources,
http://thanet.gov.uk/supplierspend,Thanet District Council,25/08/2015,391208,3052.90,,Sellick Partnership Ltd,SEL011,Corporate Resources and S151,Revenue,Services,Human Resources,
http://thanet.gov.uk/supplierspend,Thanet District Council,25/08/2015,391231,804.65,,Sellick Partnership Ltd,SEL011,Corporate Resources and S151,Revenue,Agency Staff,Human Resources,
http://thanet.gov.uk/supplierspend,Thanet District Council,25/08/2015,391288,324.00,,Sharpe Pritchard Llp,SHA030,Community Services,Revenue,Services,Legal Services,
http://thanet.gov.uk/supplierspend,Thanet District Council,25/08/2015,391211,1400.00,,Sjr Pm Solutions Limited,SJR001,East Kent Shared Services,Revenue,Services,ICT,
http://thanet.gov.uk/supplierspend,Thanet District Council,25/08/2015,391443,13530.00,,South East Building Company Limited,SEB001,Corporate Resources and S151,Balance Sheet,Capital Exp-Non Council Assets,Grants,
http://thanet.gov.uk/supplierspend,Thanet District Council,25/08/2015,391159,1418.37,,Southern Electric,SEL007,Community Services,Revenue,Energy Costs,Utilities,
http://thanet.gov.uk/supplierspend,Thanet District Council,25/08/2015,391401,678.89,,Southern Electric,SEL007,Operational Services,Revenue,Energy Costs,Utilities,
http://thanet.gov.uk/supplierspend,Thanet District Council,25/08/2015,391402,819.42,,Southern Electric,SEL007,Operational Services,Revenue,Energy Costs,Utilities,
http://thanet.gov.uk/supplierspend,Thanet District Council,25/08/2015,391404,1580.28,,Southern Electric,SEL007,Operational Services,Revenue,Energy Costs,Utilities,
http://thanet.gov.uk/supplierspend,Thanet District Council,25/08/2015,391405,281.55,,Southern Electric,SEL007,Operational Services,Revenue,Energy Costs,Utilities,
http://thanet.gov.uk/supplierspend,Thanet District Council,25/08/2015,391407,2960.81,,Southern Electric,SEL007,Community Services,Revenue,Energy Costs,Utilities,
http://thanet.gov.uk/supplierspend,Thanet District Council,25/08/2015,391408,1591.78,,Southern Electric,SEL007,Community Services,Revenue,Energy Costs,Utilities,
http://thanet.gov.uk/supplierspend,Thanet District Council,25/08/2015,391409,2062.28,,Southern Electric,SEL007,Community Services,Revenue,Energy Costs,Utilities,
http://thanet.gov.uk/supplierspend,Thanet District Council,25/08/2015,391423,1992.19,,Southern Electric,SEL007,Community Services,Revenue,Energy Costs,Utilities,
http://thanet.gov.uk/supplierspend,Thanet District Council,25/08/2015,391432,2409.48,,Southern Electric,SEL007,Community Services,Revenue,Energy Costs,Utilities,
http://thanet.gov.uk/supplierspend,Thanet District Council,25/08/2015,391433,2489.24,,Southern Electric,SEL007,Community Services,Revenue,Energy Costs,Utilities,
http://thanet.gov.uk/supplierspend,Thanet District Council,25/08/2015,391529,421.41,,Southern Electric,SEL007,Operational Services,Revenue,Energy Costs,Utilities,
http://thanet.gov.uk/supplierspend,Thanet District Council,25/08/2015,391537,2047.09,,Southern Electric,SEL007,Community Services,Revenue,Energy Costs,Utilities,
http://thanet.gov.uk/supplierspend,Thanet District Council,25/08/2015,391542,531.01,,Southern Electric,SEL007,Operational Services,Revenue,Energy Costs,Utilities,
http://thanet.gov.uk/supplierspend,Thanet District Council,25/08/2015,391543,5649.36,,Southern Electric,SEL007,Operational Services,Revenue,Energy Costs,Utilities,
http://thanet.gov.uk/supplierspend,Thanet District Council,25/08/2015,391416,300.00,,St Paul'S Church Pcc,STP011,Corporate Resources and S151,Revenue,Rents,Facilities And Management Serv,
http://thanet.gov.uk/supplierspend,Thanet District Council,25/08/2015,391484,250.00,,Straight Manufacturing Limited,STR038,Operational Services,Revenue,"Equip, Furniture And Materials",Environmental Services,
http://thanet.gov.uk/supplierspend,Thanet District Council,25/08/2015,390638,450.00,,Syon Publishing Ltd,SYO001,Community Services,Revenue,Advertising Expenses,Facilities And Management Serv,
http://thanet.gov.uk/supplierspend,Thanet District Council,25/08/2015,391254,260.86,,Trafalgar Cleaning Equipment Ltd,TRA033,Operational Services,Revenue,Direct Transport Costs,Cleaning And Janitorial,
http://thanet.gov.uk/supplierspend,Thanet District Council,25/08/2015,391274,337.11,,Tudor Owen Plant Services,TUD004,Operational Services,Revenue,Direct Transport Costs,Vehicle Management,
http://thanet.gov.uk/supplierspend,Thanet District Council,25/08/2015,391559,-2985.00,,University Of Lincoln,UNI037,Corporate Resources and S151,Revenue,Training,Human Resources,
http://thanet.gov.uk/supplierspend,Thanet District Council,25/08/2015,391560,515.00,,University Of Lincoln,UNI037,Corporate Resources and S151,Revenue,Training,Human Resources,
http://thanet.gov.uk/supplierspend,Thanet District Council,25/08/2015,391561,2985.00,,University Of Lincoln,UNI037,Corporate Resources and S151,Revenue,Training,Human Resources,
http://thanet.gov.uk/supplierspend,Thanet District Council,25/08/2015,391126,1319.00,,Viridian Energy Solutions Limited,VIR005,Corporate Resources and S151,Balance Sheet,Repairs And Mtce Holding A/C,Facilities And Management Serv,
http://thanet.gov.uk/supplierspend,Thanet District Council,25/08/2015,391271,294.66,,Viridor Waste Management Ltd,VIR003,Community Services,Revenue,Cleaning & Domestic Supplies,Environmental Services,
http://thanet.gov.uk/supplierspend,Thanet District Council,25/08/2015,391114,225.00,,W Brazil & Bros,BRA001,Corporate Resources and S151,Balance Sheet,Repairs And Mtce Holding A/C,Environmental Services,
http://thanet.gov.uk/supplierspend,Thanet District Council,25/08/2015,391117,250.00,,W Brazil & Bros,BRA001,Corporate Resources and S151,Balance Sheet,Repairs And Mtce Holding A/C,Environmental Services,
http://thanet.gov.uk/supplierspend,Thanet District Council,25/08/2015,391118,300.00,,W Brazil & Bros,BRA001,Corporate Resources and S151,Balance Sheet,Repairs And Mtce Holding A/C,Environmental Services,
http://thanet.gov.uk/supplierspend,Thanet District Council,25/08/2015,391371,654.70,,Westbury Industrial Supplies Ltd,WES042,Operational Services,Revenue,"Clothes, Uniforms & Laundry",Clothing,
http://thanet.gov.uk/supplierspend,Thanet District Council,25/08/2015,391228,2877.00,,Zoho Corporation Private Ltd,ZOH001,East Kent Shared Services,Revenue,Communications & Computing,ICT,
http://thanet.gov.uk/supplierspend,Thanet District Council,26/08/2015,PC7178,18.81,3.14,99p Stores Ltd,N/A,Community Services,Revenue,"Equip, Furniture And Materials",Facilities And Management Serv,
http://thanet.gov.uk/supplierspend,Thanet District Council,26/08/2015,PC7219,7.92,1.32,99p Stores Ltd,N/A,Community Services,Revenue,Catering,Facilities And Management Serv,
http://thanet.gov.uk/supplierspend,Thanet District Council,26/08/2015,PC7267,10.89,1.82,99p Stores Ltd,N/A,Community Services,Revenue,Grants & Subscriptions,Facilities And Management Serv,
http://thanet.gov.uk/supplierspend,Thanet District Council,26/08/2015,PC7148,114.00,,ABC Food Safety,N/A,Community Services,Revenue,Expenses,Financial Services,
http://thanet.gov.uk/supplierspend,Thanet District Council,26/08/2015,391778,464.39,,Allstar Business Solutions Ltd,ALL038,Operational Services,Revenue,Direct Transport Costs,Vehicle Management,
http://thanet.gov.uk/supplierspend,Thanet District Council,26/08/2015,391779,586.96,,Allstar Business Solutions Ltd,ALL038,Operational Services,Revenue,Direct Transport Costs,Vehicle Management,
http://thanet.gov.uk/supplierspend,Thanet District Council,26/08/2015,391780,391.01,,Allstar Business Solutions Ltd,ALL038,Operational Services,Revenue,Direct Transport Costs,Vehicle Management,
http://thanet.gov.uk/supplierspend,Thanet District Council,26/08/2015,PC7034,19.16,,Amazon,N/A,East Kent Shared Services,Revenue,"Print, Stat And Gen Off Exps",Stationery,
http://thanet.gov.uk/supplierspend,Thanet District Council,26/08/2015,PC7155,10.90,,Amazon,N/A,Operational Services,Revenue,"Equip, Furniture And Materials",Stationery,
http://thanet.gov.uk/supplierspend,Thanet District Council,26/08/2015,PC7205,111.93,,Amazon EU,N/A,Operational Services,Revenue,"Equip, Furniture And Materials",Stationery,
http://thanet.gov.uk/supplierspend,Thanet District Council,26/08/2015,PC7140,8.74,,Amazon Marketplace,N/A,Operational Services,Revenue,"Clothes, Uniforms & Laundry",Stationery,
http://thanet.gov.uk/supplierspend,Thanet District Council,26/08/2015,PC7141,59.82,,Amazon Marketplace,N/A,Operational Services,Revenue,"Equip, Furniture And Materials",Stationery,
http://thanet.gov.uk/supplierspend,Thanet District Council,26/08/2015,PC7173,5.67,,Amazon Marketplace,N/A,Operational Services,Revenue,"Equip, Furniture And Materials",Stationery,
http://thanet.gov.uk/supplierspend,Thanet District Council,26/08/2015,PC7231,37.15,,Amazon Marketplace,N/A,Corporate Resources and S151,Revenue,"Print, Stat And Gen Off Exps",Stationery,
http://thanet.gov.uk/supplierspend,Thanet District Council,26/08/2015,PC7234,5.14,0.86,B & Q,N/A,Community Services,Revenue,"Equip, Furniture And Materials",Building Construction Material,
http://thanet.gov.uk/supplierspend,Thanet District Council,26/08/2015,PC7189,51.80,,Bealorg.uk,N/A,Community Services,Revenue,"Equip, Furniture And Materials",Building Construction Material,
http://thanet.gov.uk/supplierspend,Thanet District Council,26/08/2015,PC7165,27.97,,Booker Ltd,N/A,Community Services,Revenue,Catering,Catering,
http://thanet.gov.uk/supplierspend,Thanet District Council,26/08/2015,PC7180,30.44,,Booker Ltd,N/A,Operational Services,Revenue,Catering,Catering,
http://thanet.gov.uk/supplierspend,Thanet District Council,26/08/2015,PC7181,6.79,,Booker Ltd,N/A,East Kent Housing,Revenue,Catering,Catering,
http://thanet.gov.uk/supplierspend,Thanet District Council,26/08/2015,PC7193,3.19,,Booker Ltd,N/A,Operational Services,Revenue,Catering,Catering,
http://thanet.gov.uk/supplierspend,Thanet District Council,26/08/2015,PC7194,3.19,,Booker Ltd,N/A,Operational Services,Revenue,Catering,Catering,
http://thanet.gov.uk/supplierspend,Thanet District Council,26/08/2015,PC7195,16.50,,Booker Ltd,N/A,Chief Executive,Revenue,Catering,Catering,
http://thanet.gov.uk/supplierspend,Thanet District Council,26/08/2015,PC7196,6.37,,Booker Ltd,N/A,Community Services,Revenue,Catering,Catering,
http://thanet.gov.uk/supplierspend,Thanet District Council,26/08/2015,PC7255,32.99,,Booker Ltd,N/A,Community Services,Revenue,Catering,Catering,
http://thanet.gov.uk/supplierspend,Thanet District Council,26/08/2015,PC7256,13.58,,Booker Ltd,N/A,Operational Services,Revenue,Catering,Catering,
http://thanet.gov.uk/supplierspend,Thanet District Council,26/08/2015,PC7261,48.02,,Booker Ltd,N/A,Community Services,Revenue,Catering,Catering,
http://thanet.gov.uk/supplierspend,Thanet District Council,26/08/2015,PC7262,24.37,,Booker Ltd,N/A,Community Services,Revenue,"Equip, Furniture And Materials",Catering,
http://thanet.gov.uk/supplierspend,Thanet District Council,26/08/2015,PC7136,30.00,5.00,Boots,N/A,Operational Services,Revenue,"Clothes, Uniforms & Laundry",Healthcare,
http://thanet.gov.uk/supplierspend,Thanet District Council,26/08/2015,PC7207,344.12,,BPS Access Solutions Ltd,N/A,Community Services,Revenue,"Equip, Furniture And Materials",Building Construction Material,
http://thanet.gov.uk/supplierspend,Thanet District Council,26/08/2015,PC7192,200.82,,Butonz.com,N/A,Community Services,Revenue,"Equip, Furniture And Materials",Stationery,
http://thanet.gov.uk/supplierspend,Thanet District Council,26/08/2015,PC7230,275.00,,CIEH,N/A,Community Services,Revenue,Expenses,Human Resources,
http://thanet.gov.uk/supplierspend,Thanet District Council,26/08/2015,391768,1438.00,,Co-Operative Bank Paypoint,COO018,Corporate Resources and S151,Revenue,Services,Financial Services,
http://thanet.gov.uk/supplierspend,Thanet District Council,26/08/2015,391768,479.34,,Co-Operative Bank Paypoint,COO018,Community Services,Revenue,Services,Financial Services,
http://thanet.gov.uk/supplierspend,Thanet District Council,26/08/2015,PC7235,84.66,,Data Supplies.com,N/A,East Kent Shared Services,Revenue,"Equip, Furniture And Materials",ICT,
http://thanet.gov.uk/supplierspend,Thanet District Council,26/08/2015,390095,2541.00,,Dcb (Kent) Ltd,DCB001,Corporate Resources and S151,Balance Sheet,Repairs And Mtce Holding A/C,Construction-Repair And Maint,
http://thanet.gov.uk/supplierspend,Thanet District Council,26/08/2015,390098,7691.45,,Dcb (Kent) Ltd,DCB001,Corporate Resources and S151,Balance Sheet,Repairs And Mtce Holding A/C,Construction-Repair And Maint,
http://thanet.gov.uk/supplierspend,Thanet District Council,26/08/2015,PC7226,227.50,,DVLA,N/A,Operational Services,Revenue,Direct Transport Costs,Various Cats - Public Sector,
http://thanet.gov.uk/supplierspend,Thanet District Council,26/08/2015,PC7227,167.50,,DVLA,N/A,Operational Services,Revenue,Direct Transport Costs,Various Cats - Public Sector,
http://thanet.gov.uk/supplierspend,Thanet District Council,26/08/2015,PC7187,18.00,,EA Hazardous Waste-Dom,N/A,Operational Services,Revenue,Services,Various Cats - Public Sector,
http://thanet.gov.uk/supplierspend,Thanet District Council,26/08/2015,PC7213,15.83,,Elepos,N/A,East Kent Shared Services,Revenue,"Print, Stat And Gen Off Exps",Stationery,
http://thanet.gov.uk/supplierspend,Thanet District Council,26/08/2015,PC7236,17.91,,Elepos,N/A,East Kent Shared Services,Revenue,"Print, Stat And Gen Off Exps",Stationery,
http://thanet.gov.uk/supplierspend,Thanet District Council,26/08/2015,PC7198,13.90,,ESC Europe,N/A,Corporate Resources and S151,Revenue,"Print, Stat And Gen Off Exps",Stationery,
http://thanet.gov.uk/supplierspend,Thanet District Council,26/08/2015,PC7225,20.01,,Facebook Ireland Ltd,N/A,Community Services,Revenue,Miscellaneous Expenses,Facilities And Management Serv,
http://thanet.gov.uk/supplierspend,Thanet District Council,26/08/2015,PC7263,6.55,,Facebook Ireland Ltd,N/A,Community Services,Revenue,Miscellaneous Expenses,Facilities And Management Serv,
http://thanet.gov.uk/supplierspend,Thanet District Council,26/08/2015,PC7190,58.86,,First Aid.co.uk,N/A,Operational Services,Revenue,"Equip, Furniture And Materials",Healthcare,
http://thanet.gov.uk/supplierspend,Thanet District Council,26/08/2015,PC7183,22.00,,Greggs Margate,N/A,Community Services,Revenue,Catering,Catering,
http://thanet.gov.uk/supplierspend,Thanet District Council,26/08/2015,PC7217,37.48,,Halfords,N/A,Community Services,Revenue,"Equip, Furniture And Materials",Vehicle Management,
http://thanet.gov.uk/supplierspend,Thanet District Council,26/08/2015,PC7218,91.65,,Halfords,N/A,Community Services,Revenue,"Equip, Furniture And Materials",Vehicle Management,
http://thanet.gov.uk/supplierspend,Thanet District Council,26/08/2015,PC7142,1290.00,,HM Court,N/A,East Kent Shared Services,Revenue,Services,Various Cats - Public Sector,
http://thanet.gov.uk/supplierspend,Thanet District Council,26/08/2015,PC7143,1248.00,,HM Court,N/A,East Kent Shared Services,Revenue,Services,Various Cats - Public Sector,
http://thanet.gov.uk/supplierspend,Thanet District Council,26/08/2015,PC7144,99.00,,HM Court,N/A,East Kent Shared Services,Revenue,Services,Various Cats - Public Sector,
http://thanet.gov.uk/supplierspend,Thanet District Council,26/08/2015,PC7145,117.00,,HM Court,N/A,East Kent Shared Services,Revenue,Services,Various Cats - Public Sector,
http://thanet.gov.uk/supplierspend,Thanet District Council,26/08/2015,PC7146,123.00,,HM Court,N/A,East Kent Shared Services,Revenue,Services,Various Cats - Public Sector,
http://thanet.gov.uk/supplierspend,Thanet District Council,26/08/2015,PC7147,2274.00,,HM Court,N/A,East Kent Shared Services,Revenue,Services,Various Cats - Public Sector,
http://thanet.gov.uk/supplierspend,Thanet District Council,26/08/2015,PC7240,1281.00,,HM Court,N/A,East Kent Shared Services,Revenue,Services,Various Cats - Public Sector,
http://thanet.gov.uk/supplierspend,Thanet District Council,26/08/2015,PC7241,819.00,,HM Court,N/A,East Kent Shared Services,Revenue,Services,Various Cats - Public Sector,
http://thanet.gov.uk/supplierspend,Thanet District Council,26/08/2015,PC7242,1188.00,,HM Court,N/A,East Kent Shared Services,Revenue,Services,Various Cats - Public Sector,
http://thanet.gov.uk/supplierspend,Thanet District Council,26/08/2015,PC7243,156.00,,HM Court,N/A,East Kent Shared Services,Revenue,Services,Various Cats - Public Sector,
http://thanet.gov.uk/supplierspend,Thanet District Council,26/08/2015,PC7244,93.00,,HM Court,N/A,East Kent Shared Services,Revenue,Services,Various Cats - Public Sector,
http://thanet.gov.uk/supplierspend,Thanet District Council,26/08/2015,PC7245,63.00,,HM Court,N/A,East Kent Shared Services,Revenue,Services,Various Cats - Public Sector,
http://thanet.gov.uk/supplierspend,Thanet District Council,26/08/2015,PC7246,225.00,,HM Court,N/A,East Kent Shared Services,Revenue,Services,Various Cats - Public Sector,
http://thanet.gov.uk/supplierspend,Thanet District Council,26/08/2015,PC7247,75.00,,HM Court,N/A,East Kent Shared Services,Revenue,Services,Various Cats - Public Sector,
http://thanet.gov.uk/supplierspend,Thanet District Council,26/08/2015,PC7170,160.30,26.72,Holiday Inn  Shropshire,N/A,East Kent Shared Services,Revenue,Expenses,Human Resources,
http://thanet.gov.uk/supplierspend,Thanet District Council,26/08/2015,PC7277,160.30,26.72,Holiday Inn  Shropshire,N/A,East Kent Shared Services,Revenue,Expenses,Human Resources,
http://thanet.gov.uk/supplierspend,Thanet District Council,26/08/2015,PC7220,323.52,,Htm2pdf.co.uk,N/A,Chief Executive,Revenue,Communications & Computing,ICT,
http://thanet.gov.uk/supplierspend,Thanet District Council,26/08/2015,PC7158,2515.00,,Humanware Europe Ltd,N/A,Corporate Resources and S151,Revenue,"Equip, Furniture And Materials",Human Resources,
http://thanet.gov.uk/supplierspend,Thanet District Council,26/08/2015,PC7212,120.51,,Karcher (Uk)Ltd,N/A,Operational Services,Revenue,"Equip, Furniture And Materials",Building Construction Material,
http://thanet.gov.uk/supplierspend,Thanet District Council,26/08/2015,PC7237,349.00,,Livegroup.co.uk,N/A,East Kent Shared Services,Revenue,Training,Human Resources,
http://thanet.gov.uk/supplierspend,Thanet District Council,26/08/2015,PC7177,54.00,,London & South Eastern,N/A,Community Services,Revenue,Public Transport,Human Resources,
http://thanet.gov.uk/supplierspend,Thanet District Council,26/08/2015,PC7233,10.00,,London & South Eastern,N/A,Operational Services,Revenue,Public Transport,Human Resources,
http://thanet.gov.uk/supplierspend,Thanet District Council,26/08/2015,PC7160,60.00,,Lowestoft Magistrates Courts,N/A,Community Services,Revenue,Services,Various Cats - Public Sector,
http://thanet.gov.uk/supplierspend,Thanet District Council,26/08/2015,PC7129,200.00,33.34,M&S E Commerce,N/A,Operational Services,Revenue,"Clothes, Uniforms & Laundry",Facilities And Management Serv,
http://thanet.gov.uk/supplierspend,Thanet District Council,26/08/2015,PC7200,119.20,19.87,M&S E Commerce,N/A,Operational Services,Revenue,"Clothes, Uniforms & Laundry",Facilities And Management Serv,
http://thanet.gov.uk/supplierspend,Thanet District Council,26/08/2015,391764,278477.19,,Maidstone Borough Council,MAI002,Corporate Resources and S151,Balance Sheet,Collection Fund,Various Cats-Public Sector,
http://thanet.gov.uk/supplierspend,Thanet District Council,26/08/2015,391764,769948.20,,Maidstone Borough Council,MAI002,Corporate Resources and S151,Revenue,Revenue Financing,Various Cats-Public Sector,
http://thanet.gov.uk/supplierspend,Thanet District Council,26/08/2015,PC7184,222.43,,Maplin Thanet,N/A,Operational Services,Revenue,"Equip, Furniture And Materials",Building Construction Material,
http://thanet.gov.uk/supplierspend,Thanet District Council,26/08/2015,PC7257,83.33,,Maplin Thanet,N/A,Operational Services,Revenue,"Equip, Furniture And Materials",Building Construction Material,
http://thanet.gov.uk/supplierspend,Thanet District Council,26/08/2015,PC7182,60.00,,Marks & Spencer,N/A,Operational Services,Revenue,"Clothes, Uniforms & Laundry",Facilities And Management Serv,
http://thanet.gov.uk/supplierspend,Thanet District Council,26/08/2015,PC7266,-60.00,,Marks & Spencer,N/A,Operational Services,Revenue,"Clothes, Uniforms & Laundry",Facilities And Management Serv,
http://thanet.gov.uk/supplierspend,Thanet District Council,26/08/2015,PC7202,149.00,,MBL Seminars Ltd.,N/A,Corporate Resources and S151,Revenue,Expenses,Human Resources,
http://thanet.gov.uk/supplierspend,Thanet District Council,26/08/2015,PC7223,149.00,,MBL Seminars Ltd.,N/A,Corporate Resources and S151,Revenue,Expenses,Human Resources,
http://thanet.gov.uk/supplierspend,Thanet District Council,26/08/2015,PC7239,240.00,,MBL Seminars Ltd.,N/A,Corporate Resources and S151,Revenue,Expenses,Human Resources,
http://thanet.gov.uk/supplierspend,Thanet District Council,26/08/2015,391775,270.53,,Nat West Bank,NWE001,Corporate Resources and S151,Revenue,Services,Various Categories,
http://thanet.gov.uk/supplierspend,Thanet District Council,26/08/2015,PC7215,298.80,,National Windscreens,N/A,Operational Services,Revenue,Direct Transport Costs,Vehicle Management,
http://thanet.gov.uk/supplierspend,Thanet District Council,26/08/2015,PC7232,298.80,,National Windscreens,N/A,Operational Services,Revenue,Direct Transport Costs,Vehicle Management,
http://thanet.gov.uk/supplierspend,Thanet District Council,26/08/2015,PC7252,212.00,,Nickdelaney,N/A,Community Services,Revenue,Services,Consultancy,
http://thanet.gov.uk/supplierspend,Thanet District Council,26/08/2015,PC7149,49.73,8.29,Payocs.co.uk,N/A,Community Services,Revenue,"Equip, Furniture And Materials",Environmental Services,
http://thanet.gov.uk/supplierspend,Thanet District Council,26/08/2015,PC7208,84.95,,Pis-Onlineuk.com,N/A,Community Services,Revenue,"Equip, Furniture And Materials",Building Construction Material,
http://thanet.gov.uk/supplierspend,Thanet District Council,26/08/2015,PC7174,250.00,,Possession Claims Online,N/A,Community Services,Revenue,Services,Various Cats - Public Sector,
http://thanet.gov.uk/supplierspend,Thanet District Council,26/08/2015,PC7175,250.00,,Possession Claims Online,N/A,Community Services,Revenue,Services,Various Cats - Public Sector,
http://thanet.gov.uk/supplierspend,Thanet District Council,26/08/2015,PC7209,250.00,,Possession Claims Online,N/A,Community Services,Revenue,Services,Various Cats - Public Sector,
http://thanet.gov.uk/supplierspend,Thanet District Council,26/08/2015,PC7210,250.00,,Possession Claims Online,N/A,Community Services,Revenue,Services,Various Cats - Public Sector,
http://thanet.gov.uk/supplierspend,Thanet District Council,26/08/2015,PC7211,250.00,,Possession Claims Online,N/A,Community Services,Revenue,Services,Various Cats - Public Sector,
http://thanet.gov.uk/supplierspend,Thanet District Council,26/08/2015,PC7221,110.00,,Possession Claims Online,N/A,Community Services,Revenue,Services,Various Cats - Public Sector,
http://thanet.gov.uk/supplierspend,Thanet District Council,26/08/2015,PC7222,250.00,,Possession Claims Online,N/A,Community Services,Revenue,Services,Various Cats - Public Sector,
http://thanet.gov.uk/supplierspend,Thanet District Council,26/08/2015,PC7251,250.00,,Possession Claims Online,N/A,Community Services,Revenue,Services,Various Cats - Public Sector,
http://thanet.gov.uk/supplierspend,Thanet District Council,26/08/2015,PC7159,13.54,,Post Office Shop,N/A,Community Services,Revenue,"Print, Stat And Gen Off Exps",Mail Services,
http://thanet.gov.uk/supplierspend,Thanet District Council,26/08/2015,391748,169.16,,Public Works Loan Board,PWL001,Corporate Resources and S151,Balance Sheet,Borrowing Repayable>1 Yr,Investments And Loans,
http://thanet.gov.uk/supplierspend,Thanet District Council,26/08/2015,391748,1199.16,,Public Works Loan Board,PWL001,Corporate Resources and S151,Balance Sheet,Debit Interest And Expenses,Investments And Loans,
http://thanet.gov.uk/supplierspend,Thanet District Council,26/08/2015,391751,15800.00,,Public Works Loan Board,PWL001,Corporate Resources and S151,Balance Sheet,Debit Interest And Expenses,Investments And Loans,
http://thanet.gov.uk/supplierspend,Thanet District Council,26/08/2015,PC7224,26.82,,RIBA Enterprises Ltd.,N/A,Community Services,Revenue,"Print, Stat And Gen Off Exps",Stationery,
http://thanet.gov.uk/supplierspend,Thanet District Council,26/08/2015,PC7229,7.68,,Rosettesdirect.com,N/A,Chief Executive,Revenue,"Equip, Furniture And Materials",Stationery,
http://thanet.gov.uk/supplierspend,Thanet District Council,26/08/2015,PC7248,221.50,,RS Components,N/A,Operational Services,Revenue,"Equip, Furniture And Materials",Building Construction Material,
http://thanet.gov.uk/supplierspend,Thanet District Council,26/08/2015,391765,1001.36,,Santander,SAN017,Corporate Resources and S151,Revenue,Services,Various Categories,
http://thanet.gov.uk/supplierspend,Thanet District Council,26/08/2015,391766,1961.15,,Santander,SAN017,Corporate Resources and S151,Revenue,Services,Various Categories,
http://thanet.gov.uk/supplierspend,Thanet District Council,26/08/2015,391766,653.72,,Santander,SAN017,Community Services,Revenue,Services,Various Categories,
http://thanet.gov.uk/supplierspend,Thanet District Council,26/08/2015,PC7188,29.97,,Screwfix,N/A,Community Services,Revenue,"Repairs,  Alter & Mtce - Build",Building Construction Material,
http://thanet.gov.uk/supplierspend,Thanet District Council,26/08/2015,PC7204,333.33,,Screwfix Direct Ltd,N/A,Operational Services,Revenue,"Equip, Furniture And Materials",Building Construction Material,
http://thanet.gov.uk/supplierspend,Thanet District Council,26/08/2015,389737,1676.25,,Sellick Partnership Ltd,SEL011,Corporate Resources and S151,Revenue,Agency Staff,Human Resources,
http://thanet.gov.uk/supplierspend,Thanet District Council,26/08/2015,PC7156,65.00,,SW Retail Ltd,N/A,Corporate Resources and S151,Revenue,"Equip, Furniture And Materials",Human Resources,
http://thanet.gov.uk/supplierspend,Thanet District Council,26/08/2015,PC7249,5.00,,SW Retail Ltd,N/A,Corporate Resources and S151,Revenue,"Equip, Furniture And Materials",Human Resources,
http://thanet.gov.uk/supplierspend,Thanet District Council,26/08/2015,PC7139,2.85,,Tesco,N/A,Community Services,Revenue,Catering,Catering,
http://thanet.gov.uk/supplierspend,Thanet District Council,26/08/2015,PC7179,11.50,1.92,Tesco,N/A,Community Services,Revenue,"Equip, Furniture And Materials",Catering,
http://thanet.gov.uk/supplierspend,Thanet District Council,26/08/2015,PC7197,11.00,1.84,Tesco,N/A,Community Services,Revenue,Catering,Catering,
http://thanet.gov.uk/supplierspend,Thanet District Council,26/08/2015,PC7258,28.00,4.67,Tesco,N/A,Operational Services,Revenue,"Repairs,  Alter & Mtce - Build",Catering,
http://thanet.gov.uk/supplierspend,Thanet District Council,26/08/2015,PC7264,5.00,0.84,Tesco,N/A,Community Services,Revenue,"Equip, Furniture And Materials",Catering,
http://thanet.gov.uk/supplierspend,Thanet District Council,26/08/2015,PC7265,3.40,0.57,Tesco,N/A,Community Services,Revenue,"Equip, Furniture And Materials",Catering,
http://thanet.gov.uk/supplierspend,Thanet District Council,26/08/2015,PC7176,280.00,,Thanet County Court,N/A,Community Services,Revenue,Services,Various Cats - Public Sector,
http://thanet.gov.uk/supplierspend,Thanet District Council,26/08/2015,PC7250,110.00,,Thanet County Court,N/A,Community Services,Revenue,Services,Various Cats - Public Sector,
http://thanet.gov.uk/supplierspend,Thanet District Council,26/08/2015,PC7171,174.00,29.00,The Brunswick Hotel,N/A,East Kent Shared Services,Revenue,Expenses,Human Resources,
http://thanet.gov.uk/supplierspend,Thanet District Council,26/08/2015,PC7203,28.49,,Toolstation Ltd,N/A,Community Services,Revenue,"Equip, Furniture And Materials",Building Construction Material,
http://thanet.gov.uk/supplierspend,Thanet District Council,26/08/2015,PC7201,11.50,,Transport for London,N/A,Chief Executive,Revenue,Expenses,Human Resources,
http://thanet.gov.uk/supplierspend,Thanet District Council,26/08/2015,PC7259,135.00,,Trews,N/A,Operational Services,Revenue,"Clothes, Uniforms & Laundry",Clothing,
http://thanet.gov.uk/supplierspend,Thanet District Council,26/08/2015,PC7206,11.00,,Tunbridge Wells Certificate Office,N/A,East Kent Shared Services,Revenue,"Print, Stat And Gen Off Exps",Various Cats - Public Sector,
http://thanet.gov.uk/supplierspend,Thanet District Council,26/08/2015,PC7214,11.00,,Tunbridge Wells Certificate Office,N/A,East Kent Shared Services,Revenue,"Print, Stat And Gen Off Exps",Various Cats - Public Sector,
http://thanet.gov.uk/supplierspend,Thanet District Council,26/08/2015,PC7112,-43.00,,Virgin Trains,N/A,East Kent Shared Services,Revenue,Public Transport,Human Resources,
http://thanet.gov.uk/supplierspend,Thanet District Council,26/08/2015,PC7152,313.00,,Virgin Trains,N/A,East Kent Shared Services,Revenue,Public Transport,Human Resources,
http://thanet.gov.uk/supplierspend,Thanet District Council,26/08/2015,PC7157,23.40,,Virgin Trains,N/A,Operational Services,Revenue,Public Transport,Human Resources,
http://thanet.gov.uk/supplierspend,Thanet District Council,26/08/2015,PC7161,120.10,,Virgin Trains,N/A,Community Services,Revenue,Public Transport,Human Resources,
http://thanet.gov.uk/supplierspend,Thanet District Council,26/08/2015,PC7166,-62.80,,Virgin Trains,N/A,East Kent Shared Services,Revenue,Public Transport,Human Resources,
http://thanet.gov.uk/supplierspend,Thanet District Council,26/08/2015,PC7167,-53.60,,Virgin Trains,N/A,East Kent Shared Services,Revenue,Public Transport,Human Resources,
http://thanet.gov.uk/supplierspend,Thanet District Council,26/08/2015,PC7168,-62.80,,Virgin Trains,N/A,East Kent Shared Services,Revenue,Public Transport,Human Resources,
http://thanet.gov.uk/supplierspend,Thanet District Council,26/08/2015,PC7169,-53.60,,Virgin Trains,N/A,East Kent Shared Services,Revenue,Public Transport,Human Resources,
http://thanet.gov.uk/supplierspend,Thanet District Council,26/08/2015,PC7253,153.80,,Virgin Trains,N/A,Corporate Resources and S151,Revenue,Public Transport,Human Resources,
http://thanet.gov.uk/supplierspend,Thanet District Council,26/08/2015,PC7254,88.00,,Virgin Trains,N/A,Operational Services,Revenue,Public Transport,Human Resources,
http://thanet.gov.uk/supplierspend,Thanet District Council,26/08/2015,PC7199,-66.90,,Webtis,N/A,Community Services,Revenue,Public Transport,Human Resources,
http://thanet.gov.uk/supplierspend,Thanet District Council,26/08/2015,PC7216,12.15,2.03,West Bay Cafe,N/A,Community Services,Revenue,Catering,Catering,
http://thanet.gov.uk/supplierspend,Thanet District Council,26/08/2015,PC7268,75.28,5.90,WM Morrison Plc,N/A,Community Services,Revenue,Grants & Subscriptions,Catering,
http://thanet.gov.uk/supplierspend,Thanet District Council,26/08/2015,PC7269,3.00,0.50,WM Morrison Plc,N/A,Community Services,Revenue,Grants & Subscriptions,Catering,
http://thanet.gov.uk/supplierspend,Thanet District Council,26/08/2015,391770,744.54,,Worldpay Ltd,WOR008,Operational Services,Revenue,Services,Financial Services,
http://thanet.gov.uk/supplierspend,Thanet District Council,26/08/2015,391771,2362.66,,Worldpay Ltd,WOR008,Corporate Resources and S151,Revenue,Services,Financial Services,
http://thanet.gov.uk/supplierspend,Thanet District Council,26/08/2015,391772,2189.71,,Worldpay Ltd,WOR008,Corporate Resources and S151,Revenue,Services,Financial Services,
http://thanet.gov.uk/supplierspend,Thanet District Council,26/08/2015,391776,480.04,,Worldpay Ltd,WOR008,Corporate Resources and S151,Revenue,Services,Financial Services,
http://thanet.gov.uk/supplierspend,Thanet District Council,28/08/2015,391931,247535.28,,Maidstone Borough Council,MAI002,Corporate Resources and S151,Balance Sheet,Collection Fund,Various Cats-Public Sector,
http://thanet.gov.uk/supplierspend,Thanet District Council,28/08/2015,391931,684398.40,,Maidstone Borough Council,MAI002,Corporate Resources and S151,Revenue,Revenue Financing,Various Cats-Public Sector,
http://thanet.gov.uk/supplierspend,Thanet District Council,28/08/2015,391932,-219956.00,,Secretary Of State,SEC003,Corporate Resources and S151,Revenue,Revenue Financing,Government Agencies,
http://thanet.gov.uk/supplierspend,Thanet District Council,28/08/2015,391932,1185738.00,,Secretary Of State,SEC003,Corporate Resources and S151,Balance Sheet,Collection Fund,Government Agencies,
